Workbook

Sheet Bedienungshinweise
B1: Bedienungshinweise zum Haushaltsprogramm
A2: 1 | B2: Das Haushaltsprogramm Kameradschaftskassen Feuerwehren stellt eine vom LFV ehrenamtlich erstellte Arbeitshilfe in Excel für die Feuerwehren im Land Schleswig-Holstein dar. Rechtsgrundlage ist insbesondere §2a BrSchG S-H. Eine Verpflichtung zur Nutzung besteht nicht, der erforderliche Zweck der durch Gesetz und Satzung vorgeschriebenen Verfahrensweisen und Darstellungen des Sondervermögens Kameradschaftskasse kann auch mit anderen Mitteln erreicht werden, sofern die Darstellung den in den Reitern "Gesamt-Einnahmen und Ausgaben", "Gesamtplanung 2021" und "Gesamtrechnung (Plan-Ist 2020" ersichtlichen Mustern weitgehend entspricht. Das Programm erhebt keinen Anspruch auf Vollständigkeit, sondern kann beliebig individuell angepasst werden. Für die Bedienung sind einfache Excel-Kenntnisse erforderlich. Je nach Aktualität der Excel-Version können dargestellte Befehle textlich abweichen. Die alternative Nutzung mit einem "Open-Office-Programm" wie "Libre Office" oder "OpenOffice" ist möglich, wurde aber nicht getestet.
A3: 2 | B3: Der Landesfeuerwehrverband Schleswig-Holstein übernimmt keine Garantie für Fehlerfreiheit. Das Programm wurde nach bestem Wissen entwickelt und getestet. Jedem Anwender wird empfohlen, das Programm für seine Zwecke ebenfalls zu testen sowie regelmäßig Sicherungskopien anzufertigen. Bei jeder Veränderung besteht das Risiko, dass Formeln beschädigt oder gelöscht werden, was zu Fehlern im Programm führen kann. Um solche Fehler zu vermeiden, kann ein Blattschutz aktiviert werden (siehe unten). Jeder Anwender ist für die Ergebnisse dieser Anwendung selbst verantwortlich. Weitere Einzelheiten gehen aus der Satzung der Gemeinde/Stadt und Handlungshilfe für die Führung der Kameradschaftskassen der Freiwilligen Feuerwehren in Schleswig-Holstein hervor. Handlungshilfe und eine Fortbildung sind auf der Homepage des LFV-SH: https://www.lfv-sh.de/fileadmin/download/wissenswertes/Handlungshilfe_Kameradschaftskassen_20170921Version3_0.pdf und https://www.lfv-sh.de/fileadmin/download/wissenswertes/Fortbildung-Kameradschaftskassen_1_0.pdf veröffentlicht.
A4: 3 | B4: Der Einnahme- und Ausgabeplan wird von der Mitgliederversammlung beschlossen und tritt nach der Zustimmung der Gemeindevertretung/Stadtvertretung in Kraft. Zur Ausführung des Einnahme- und Ausgabeplans kann die Gemeindewehrführung oder die Ortswehrführung Erklärungen abgeben und Handlungen ausführen, durch welche die Gemeinde verpflichtet, berechtigt oder befreit werden kann; er oder sie handelt insoweit in Vertretung der Bürgermeisterin oder des Bürgermeisters. Wird eine Veranstaltung nach Maßgabe des Einnahme- und Ausgabeplans über das Sondervermögen abgewickelt, ist die Gemeinde Veranstalter.
A5: 4 | B5: Das Programm eignet sich für viele Größen von Feuerwehren. Bei einer kleinen Feuerwehr mit einem Bankkonto und einer Kasse ist die Idee, nur die Arbeitsblätter "Bankkonto-Wehr" sowie "Kasse-Wehr" genutzt werden, bei größeren Feuerwehren die bis zu 6 weiteren Arbeitsblätter. Zur individuellen Anpassung können die Arbeitsblätter in eine andere Reihenfolge verschoben werden, etwa wenn es nur 1 Bankkonto, aber 4 Kassen gibt. [ auf den Reiter laufen_ mit linker Maustaste festhalten_ nach rechts oder links laufen]. Bankkonto-Reiter lassen sich natürlich auch als Kassen-Reiter (und umgedreht) nutzen. Die Übersicht in Reiter "Übersicht Banken und Kassen" und die Bezeichnung des Arbeitsblattes muss dann entsprechend angepasst werden. Bei Auslieferung sind in allen Buchungsbereichen Buchungen zur Demonstration und Orientierung enthalten. Vor dem Start müssen alle Kennziffern und Beträge gelöscht werden.
A6: 5 | B6: Bei Investitionen im Einzelbetrag ab 500,00 Euro ist ein Bestandsverzeichnis zu führen. Es sollte dem Muster im Reiter "Bestandsverzeichnis" entsprechen. Bei Vortrag des Programms auf das Folgejahr (siehe weiter unten) darf das Bestandsverzeichnis nicht gelöscht werden.
A7: 6 | B7: In verschiedenen Zellen des Programms sind erläuternde Hinweise in Form von Kommentaren angebracht. Der Kommentar wird durch Herauflaufen auf die Zelle und auf die oben rechts in der jeweiligen Zelle erkennbare rote Ecke aktiviert. Eine dauerhafte Anzeige/Verbergen einzelner Kommentare erfolgt über [rechte Maustaste_Kommentare ein-/ausblenden].
A8: 7 | B8: Im Auslieferungszustand sind die Kommentare weitgehend zugeklappt. Sie können alle in einem Zuge wie folgt aufgeklappt/zugeklappt werden: [Im Menue: Überprüfen_Alle Kommentare anzeigen; Alle Zuklappen: erneut auf "Alle Kommentare anzeigen" clicken]. Um Beschädigungen an Verweisen und Formeln zu vermeiden, wurde an vielen Stellen ein Blattschutz ohne Passwort für schützenswerte Zellen eingearbeitet, der für jedes einzelne Blatt jederzeit im Menue "Überprüfen"_"Blatt schützen" bzw "Blattschutz aufheben" aktiviert oder aufgehoben werden kann. Bei "Blatt schützen" muss ein Haken bei (mindestens) "Nicht gesperrte Zellen auswählen" gesetzt sein. Im Auslieferungszustand ist der Blattschutz nicht bei allen Arbeitsblättern aktiviert.
A9: 8 | B9: Jedes Blatt hat für Buchungen 150 Zeilen. Weitere je 50 Zeilen können mit der Schaltfläche "Weitere 50 Zeilen einfügen" erzeugt werden. Vorher den Blattschutz ausschalten, falls aktiviert. Der Jahresbedarf an Zeilen sollte zu Jahresbeginn erzeugt werden. Die zusätzlichen Zeilen werden vor der Zeile 51 eingesetzt. Sofern der Buchungsstoff bereits darüber hinausgeht, wird eine Lücke erzeugt, die anschließend durch Hochsetzen des Buchungsstoffs (Kopie, nicht Schieben!) zu bereinigen ist. Fehlergefahr !
A10: 9 | B10: Es wird empfohlen, unterjährig regelmäßige Sicherungskopien zu erzeugen z.B. monatlich oder jedes viertel Jahr. Im Reiter "Übersicht Banken u. Kassen" sind Eingabezellen in leichtem Grün gefärbt.
A11: 10 | B11: Vorgehen bei Planung und Buchung des aktuellen Jahres:
A12: 11 | B12: a) Eingabe der Planzahlen für das aktuelle Jahr (2021) Erstanwendung: Im Reiter "Bankkonto-Wehr" die geplanten Beträge für Einnahmen (Spalte K 5 bis 11) und Ausgaben (Spalte L 5 bis 11) gemäß der Bezeichnungen Nr. 0 bis 14 im gelben Feld oben rechts eintragen. Alle Plan-Einnahmen und Plan-Ausgaben bis zum Jahresende müssen geschätzt werden. Es empfiehlt sich eine Rundung auf volle Einhundert Euro. Es sollte darauf geachtet werden, in den jeweiligen Positionen ausreichend Reserven mit aufzunehmen. Vorgehen Folgejahr siehe unten.
A13: 12 | B13: b) Eingabe der Konto- und Kassenstände am 1. Januar des aktuellen Jahres (z.B. 2021) im Reiter "Übersicht Banken u. Kassen" Spalte D.
A14: 13 | B14: c) Individuelle Auswahl der Anzahl Bankkonten und Kassen. Ggf. Verschieben der Reiter wie oben beschrieben.
A15: 14 | B15: d) Buchung der angefallenen Geschäftsvorgänge in den Feldern ab Zeile 20 der jeweiligen Arbeitsblätter. Einsetzen der jeweiligen Ziffern in Spalte "F". Bei einer Umbuchung zwischen Konten und Kassen bitte Kennziffer "U" verwenden. Bitte auf richtige Kennziffer und richtige Spalte achten, hohe Fehlergefahr.
A16: 15 | B16: e) Gegen Jahresende zur Vorbereitung der Planung des nächsten Jahres gesamtes Programm mit neuer Jahreszahl (z.B. 2022) abspeichern. In der laufenden Datei (2021) die Arbeiten wie gewohnt bis zum Jahresende fortsetzen.
A17: 16 | B17: f) Nach Buchung des letzten Geschäftsvofalls des laufenden Geschäftsjahres und Abstimmung mit den Kontoauszügen der Banken bzw. Kassenaufnahmen zum 31. Dezember ergibt sich im Reiter "Gesamtrechnung (Plan-Ist 2021)" der Soll-Ist-Vergleich, der ausgedruckt der Bürgermeisterin/dem Bürgermeister zur Kenntnisnahme durch die Gemeindevertretung/Stadtvertretung zuzuleiten ist. Der Soll-Ist-Vergleich kann den Bericht der Kassenführung auf der Jahreshauptversammlung ergänzen.
A18: 17 | B18: Eingebaute Prüfungen sowie Dokumentation der Kassenprüfung
A19: 18 | B19: In das Haushaltsprogramm wurden verschiedene Prüfungen aufgenommen.
A20: 19 | B20: A) Reiter "Übersicht Banken u. Kassen"
A21: 20 | B21: A1) Zelle F14: Prüfung, ob errechneter Stand Sondervermögen in Zelle F13 mit aktuellem Stand Sondervermögen Zelle D18 in Reiter "Gesamt-Einnahmen und Ausgaben" übereinstimmt. Anzeige: "OK"
A22: 21 | B22: A2) Zelle G17: Prüfung, ob alle Umbuchungen zwischen Konten und Kassen ausgeglichen sind. Anzeige "OK"
A23: 22 | B23: A3) Spalte H, Zellen 3 bis 5 und 7 bis 11: Erste Prüfung, ob in der jeweiligen Zeile der errechnete Stand gem. Buchführung (Spalte F) negativ ist. Anzeige von: "FEHLER! Aktueller Stand gem. Buchführung darf nicht negativ werden".
A24: 23 | B24: A4) Spalte H, Zellen 3 bis 5 und 7 bis 11: Zweite Prüfung, ob in der jeweiligen Zeile der errechnete Stand gem. Buchführung (Spalte F) dem Stand gem. Kontoauszug bzw. Kassenaufnahmeprotokoll (Spalte G) entspricht. Anzeige von: "Aktueller Stand gem. Buchführung stimmt mit Stand am 31. Dezember überein" oder "FEHLER! Aktueller Stand gem. Buchführung stimmt nicht mit Stand am 31. Dezember überein". Es wird empfohlen, die Abstimmung mit dem Konten- und Kassenbeständen auch unterjährig regelmäßig durchzuführen, z.B. jedes Quartal.
A25: 24 | B25: B) Alle Reiter "Bankkonto xy" sowie "Kasse xy":
A26: 25 | B26: B1) Zelle J17: Prüfung, ob in der jeweiligen Zeile J16 der errechnete Betrag gem. Buchführung (Spalte F) negativ ist. Anzeige von: "FEHLER! Aktueller Stand gem. Buchführung darf nicht negativ werden" bzw "OK". Bei einem negativen Betrag in der jeweiligen Zelle J16 färbt sich der Hintergrund rot.
A27: 26 | B27: B2) Zelle G174 (oder nach Einfügung weiterer neuer Zeilen Zelle G225 bzw. G274 usw.): Prüfung, ob die Einnahmen mit Kennziffern für Einnahmen versehen sind und ob die Summe der Einnahmen richtig in die obere Darstellung der Einnahmen übernommen wurden. Anzeige von "OK" oder "Fehler".
A28: 27 | B28: B3) Zelle HI174 (oder nach Einfügung neuer Zeilen Zelle HI225 bzw. HI274 usw.): Prüfung, ob die Ausgaben mit Kennziffern für Ausgaben versehen sind und ob die Summe der Ausgaben richtig in die obere Darstellung der Ausgaben übernommen wurden.
A29: 28 | B29: Zur Dokumentation der Kassenprüfung und dessen Ergebnis ist in der "Übersicht Banken u. Kassen ein Formblatt mit Ausdruckbereich eingerichtet. Anzeige über "Seitenansicht".
A30: 29 | B30: Vorgehen bei Aufstellung der Planansätze des Folgejahres (Bearbeitung in 2021 für 2022) und Vorbereiten für die Buchungen des Folgejahres
A31: 30 | B31: a) Zur Aufstellung der Planansätze des Folgejahres in der neu erzeugten Datei des Folgejahres (2021) werden im Reiter "Bankkonto-Wehr" die geplanten Beträge für Einnahmen (Spalte K 5 bis 11) und Ausgaben (Spalte L 5 bis 11) gemäß der Bezeichnungen Nr. 0 bis 14 im gelben Feld oben rechts eintragen. Als Orientierung dienen die bis dahin aufgelaufenen Ist-Einnahmen und Ist-Ausgaben des bereits weitgehend abgelaufenen Haushaltsvorjahres (2020). Weitere noch zu erwartende Ist-Einnahmen und Ist-Ausgaben bis zum Jahresende müssen, wie auch bereits bekannte zusätzliche/geringere Einnahmen und Ausgaben, für die Planung geschätzt werden. Es empfiehlt sich eine Aufrundung mindestens auf volle Einhundert Euro. Dieser Planungsprozeß anhand der Orientierung an den Ist-Zahlen des Haushaltsvorjahres sollte in allen Arbeitsblättern mit Bankkonten und Kassen durchgeführt werden. Je später im Jahr die Planungsarbeit erfolgt, um so vollständiger sind die Ist-Zahlen und somit die Genauigkeit der zu planenden neuen Werte. Sofern die Planung erst Anfang Januar des Folgejahres durchgeführt wird, ist beim Anfangsbestand zum 1.1. (Reiter "Gesamt-Planung 202x; Zelle C 17) der Endstand zum 31.12. des abgelaufenen Haushaltsjahres (Reiter "Übersicht Banken u. Kassen; Zelle F 13 der Vorjahresdatei) exakt zu übernehmen.
A32: 31 | B32: b) Sind alle Planzahlen eingegeben, ergibt sich die neue Planung des Folgejahres (2022) aus dem (alten) Reiter Gesamt-Planung 2021, durch Doppelclick auf den Text des Reiters anpassbar auf Gesamt-Planung 2022.
A33: 32 | B33: c) Die Planung des Folgejahres kann nun ausgedruckt und von der Hauptversammlung beschlossen werden.
A34: 33 | B34: d) Anschließend ist die Planung der Bürgermeisterin/dem Bürgermeister zur Zustimmung durch die Gemeindevertretung/Stadtvertretung zuzuleiten.
A35: 34 | B35: e) Zur Vorbereitung des Programms auf das nächste Geschäftsjahr sind die Bank- und Kassenstände vom 31.Dezember des abgelaufenen Geschäftsjahres im Reiter "Übersicht Banken u. Kassen" in Spalte D "Stand am 1. Januar" einzutragen und anschließend alle Buchungen des Vorjahrs in den Arbeitsblättern zu löschen. Das Bestandsverzeichnis darf nicht gelöscht werden. Es muss alle Investitionen der Vorjahre bis zum Abgang einzelner Vermögensgegenstände enthalten. Eine Inventur zum Jahresende wird empfohlen.
A36: 35 | B36: f) Zusammenfassend sind (nur) die folgenden Unterlagen an die Gemeinde/Stadt zu geben: 1) Gesamt-Planung des Folgejahres zum Beschluss; 2) Gesamtrechnung (Soll-Ist-Vergleich) des abgelaufenen Jahres zur Kenntnis. Weitere Untergliederungen, z.B. durch die einzelnen Arbeitsblätter, sind interne Unterlagen der Feuerwehr. Die Buchungsunterlagen werden bei der Gemeinde/Stadt archiviert.
A37: 36 | B37: Ein Tipp bei der Fehlersuche: Lässt sich die Abweichung glatt durch 9 teilen, handelt es sich mit an Sicherheit grenzender Wahrscheinlichkeit um einen Zahlendreher bei der Eingabe eines Wertes, z.B. in der laufenden Buchhaltung.
A38: 37 | B38: Versionsinfo:
B39: 2.0: 31.Oktober 2020
B40: 2.1: 07.Januar 2021: Behebt ein Problem bei der Buchung der Rücklage, sofern die Summe der Einnahmen gleich der Summe der Ausgaben ist.
B41: 2.2: 25.Januar 2021: Berechnung der Rücklagenbewegung angepasst
B42: 2.3: 2.März 2022: Darstellungsproblem einer Prüfzelle behoben; Checkliste Kassenprüfung eingefügt
B43: © Ludwig Fink; Landesfeuerwehrverband Schleswig-Holstein

Sheet Gesamt-Einnahmen und Ausgaben
A1: Sondervermögen Kameradschaftskasse der Freiwilligen Feuerwehr der Gemeinde Musterort
A2: Einnahmen- und Ausgaben für das Haushaltsjahr | D2: 2022
A3: Nr. | B3: Bezeichnung | C3: Einnahmen | D3: Erläuterungen | E3: Nr. | F3: Bezeichnung | G3: Ausgaben | H3: Erläuterungen
A4: 1 | B4: 2 | C4: 3 | D4: 4 | E4: 5 | F4: 6 | G4: 7 | H4: 8
A5: 0 | B5: Zuwendungen von Mitgliedern | C5: ='Bankkonto-Wehr'!D5+'Kasse-Wehr'!D5+'Bankkonto-Jugendwehr'!D5+'Kasse-Jugendwehr'!D5+'Bankkonto-Musikzug'!D5+'Kasse-Musikzug'!D5+'Kasse 4'!D5+'Kasse 5'!D5 -> 60016 | E5: 8 | F5: Ausgaben für Kameradschaftspflege und Versammlungen | G5: ='Bankkonto-Wehr'!H5+'Kasse-Wehr'!H5+'Bankkonto-Jugendwehr'!H5+'Kasse-Jugendwehr'!H5+'Bankkonto-Musikzug'!H5+'Kasse-Musikzug'!H5+'Kasse 4'!H5+'Kasse 5'!H5 -> 60121
A6: 1 | B6: Zuwendungen von Dritten | C6: ='Bankkonto-Wehr'!D6+'Kasse-Wehr'!D6+'Bankkonto-Jugendwehr'!D6+'Kasse-Jugendwehr'!D6+'Bankkonto-Musikzug'!D6+'Kasse-Musikzug'!D6+'Kasse 4'!D6+'Kasse 5'!D6 -> 60014 | E6: 9 | F6: Ausgaben für Ehrungen, Geschenke und ähnliche Anlässe | G6: ='Bankkonto-Wehr'!H6+'Kasse-Wehr'!H6+'Bankkonto-Jugendwehr'!H6+'Kasse-Jugendwehr'!H6+'Bankkonto-Musikzug'!H6+'Kasse-Musikzug'!H6+'Kasse 4'!H6+'Kasse 5'!H6 -> 60014
A7: 2 | B7: Einnahmen aus Veranstaltungen | C7: ='Bankkonto-Wehr'!D7+'Kasse-Wehr'!D7+'Bankkonto-Jugendwehr'!D7+'Kasse-Jugendwehr'!D7+'Bankkonto-Musikzug'!D7+'Kasse-Musikzug'!D7+'Kasse 4'!D7+'Kasse 5'!D7 -> 60014 | E7: 10 | F7: Ausgaben für Veranstaltungen | G7: ='Bankkonto-Wehr'!H7+'Kasse-Wehr'!H7+'Bankkonto-Jugendwehr'!H7+'Kasse-Jugendwehr'!H7+'Bankkonto-Musikzug'!H7+'Kasse-Musikzug'!H7+'Kasse 4'!H7+'Kasse 5'!H7 -> 60007
A8: 3 | B8: Veräußerung von Vermögens-gegenständen im Einzelwert ab 500 € | C8: ='Bankkonto-Wehr'!D8+'Kasse-Wehr'!D8+'Bankkonto-Jugendwehr'!D8+'Kasse-Jugendwehr'!D8+'Bankkonto-Musikzug'!D8+'Kasse-Musikzug'!D8+'Kasse 4'!D8+'Kasse 5'!D8 -> 60014 | D8: Einnahmen aus Abgängen von der Bestandsliste | E8: 11 | F8: Erwerb von Vermögensgegenständen im Einzelwert ab 500 € | G8: ='Bankkonto-Wehr'!H8+'Kasse-Wehr'!H8+'Bankkonto-Jugendwehr'!H8+'Kasse-Jugendwehr'!H8+'Bankkonto-Musikzug'!H8+'Kasse-Musikzug'!H8+'Kasse 4'!H8+'Kasse 5'!H8 -> 60007 | H8: Ausgaben für Zugänge zur Bestandsliste
A9: 4 | B9: Erstattung von Auslagen durch Gemeinde und Dritte | C9: ='Bankkonto-Wehr'!D9+'Kasse-Wehr'!D9+'Bankkonto-Jugendwehr'!D9+'Kasse-Jugendwehr'!D9+'Bankkonto-Musikzug'!D9+'Kasse-Musikzug'!D9+'Kasse 4'!D9+'Kasse 5'!D9 -> 60014 | E9: 12 | F9: Auslagen für Gemeinde und Dritte | G9: ='Bankkonto-Wehr'!H9+'Kasse-Wehr'!H9+'Bankkonto-Jugendwehr'!H9+'Kasse-Jugendwehr'!H9+'Bankkonto-Musikzug'!H9+'Kasse-Musikzug'!H9+'Kasse 4'!H9+'Kasse 5'!H9 -> 60007
A10: 5 | B10: Sonstige Einnahmen | C10: ='Bankkonto-Wehr'!D10+'Kasse-Wehr'!D10+'Bankkonto-Jugendwehr'!D10+'Kasse-Jugendwehr'!D10+'Bankkonto-Musikzug'!D10+'Kasse-Musikzug'!D10+'Kasse 4'!D10+'Kasse 5'!D10 -> 60014 | E10: 13 | F10: Sonstige Ausgaben | G10: ='Bankkonto-Wehr'!H10+'Kasse-Wehr'!H10+'Bankkonto-Jugendwehr'!H10+'Kasse-Jugendwehr'!H10+'Bankkonto-Musikzug'!H10+'Kasse-Musikzug'!H10+'Kasse 4'!H10+'Kasse 5'!H10 -> 60007
A11: 6 | B11: Einzahlungen der Gemeinde | C11: ='Bankkonto-Wehr'!D11+'Kasse-Wehr'!D11+'Bankkonto-Jugendwehr'!D11+'Kasse-Jugendwehr'!D11+'Bankkonto-Musikzug'!D11+'Kasse-Musikzug'!D11+'Kasse 4'!D11+'Kasse 5'!D11 -> 60014 | E11: 14 | F11: Auszahlungen an die Gemeinde | G11: ='Bankkonto-Wehr'!H11+'Kasse-Wehr'!H11+'Bankkonto-Jugendwehr'!H11+'Kasse-Jugendwehr'!H11+'Bankkonto-Musikzug'!H11+'Kasse-Musikzug'!H11+'Kasse 4'!H11+'Kasse 5'!H11 -> 60007
A12: 7 | B12: Entnahme aus der Rücklage | C12: =IF(C65<0,C65*-1,0) -> 70 | D12: Automatische Buchung | E12: 15 | F12: Zuführung zur Rücklage | G12: =IF(C65>0,C65,0) -> 0 | H12: Automatische Buchung
A13: 0-7 | B13: Gesamteinnahmen | C13: =SUM(C5:C12) -> 420170 | E13: 8-15 | F13: Gesamtausgaben | G13: =SUM(G5:G12) -> 420170
B14: © Ludwig Fink; Landesfeuerwehrverband Schleswig-Holstein | F14: Die Ausgaben werden für gegenseitig deckungsfähig erklärt.
B15: Stand des Sondervermögens am 1.Januar 2021 | C15: ='Übersicht Banken u. Kassen'!D13 -> 307
B16: Entnahme | C16: =C12 -> 70
B17: Zuführung | C17: =G12 -> 0
B18: Stand des Sondervermögens am 31.Dezember 2021 | C18: =ROUNDDOWN((C15-C16+C17),2) -> 237 | D18: =IF(C18>=0," ","FEHLER! Stand negativ") -> 
B64: Rechenzellen:
B65: Rücklage | C65: ='Bankkonto-Wehr'!H12-'Bankkonto-Wehr'!D12+'Kasse-Wehr'!H12-'Kasse-Wehr'!D12+'Bankkonto-Jugendwehr'!H12-'Bankkonto-Jugendwehr'!D12+'Kasse-Jugendwehr'!H12-'Kasse-Jugendwehr'!D12+'Bankkonto-Musikzug'!H12-'Bankkonto-Musikzug'!D12+'Kasse-Musikzug'!H12-'Kasse-Musikzug'!D12+'Kasse 4'!H12-'Kasse 4'!D12+'Kasse 5'!H12-'Kasse 5'!D12 -> -70

Sheet Übersicht Banken u. Kassen
A2: ='Gesamt-Einnahmen und Ausgaben'!D2 -> 2022 | C2: Konto | D2: Stand am 1. Januar gemäß Kontoauszug/ Kassenaufnahmeprotokoll | E2: Aktueller Stand gemäß Buchführung | F2: Stand am 31. Dezember gemäß Kontoauszug/ Kassenaufnahme-protokoll | G2: Kommentare für Kassenwartung und die Kassenprüfung
A3: Bank Wehr | B3: VR-Bank Kalifornien | C3: DE 35 213500 08 000183 223 | D3: 1 | E3: =ROUND('Bankkonto-Wehr'!I17,2) -> 202 | F3: 202 | G3: =IF(E3<0,"FEHLER! Aktueller Stand gem. Buchführung darf nicht negativ werden",IF(F3=0,"",IF(E3-F3=0,"Aktueller Stand gem. Buchführung stimmt mit Stand am 31. Dezember überein","FEHLER! Aktueller Stand gem. Buchführung stimmt nicht mit Stand am 31. Dezember überein"))) -> Aktueller Stand gem. Buchführung stimmt mit Stand am 31. Dezember überein
A4: Bank Jugendwehr | B4: VR-Bank Kalifornien | C4: DE 35 213500 08 001183 223 | D4: 1 | E4: =ROUND('Bankkonto-Jugendwehr'!I17,2) -> 1 | F4: 1 | G4: =IF(E4<0,"FEHLER! Aktueller Stand gem. Buchführung darf nicht negativ werden",IF(F4=0,"",IF(E4-F4=0,"Aktueller Stand gem. Buchführung stimmt mit Stand am 31. Dezember überein","FEHLER! Aktueller Stand gem. Buchführung stimmt nicht mit Stand am 31. Dezember überein"))) -> Aktueller Stand gem. Buchführung stimmt mit Stand am 31. Dezember überein
A5: Bank Musikzug | B5: Sparkasse Brasilien | C5: DE 76 205700 02 003366 454 | D5: 1 | E5: =ROUND('Bankkonto-Musikzug'!I17,2) -> 8 | F5: 8 | G5: =IF(E5<0,"FEHLER! Aktueller Stand gem. Buchführung darf nicht negativ werden",IF(F5=0,"",IF(E5-F5=0,"Aktueller Stand gem. Buchführung stimmt mit Stand am 31. Dezember überein","FEHLER! Aktueller Stand gem. Buchführung stimmt nicht mit Stand am 31. Dezember überein"))) -> Aktueller Stand gem. Buchführung stimmt mit Stand am 31. Dezember überein
A6: Summe Bankkonten | D6: =SUM(D3:D5) -> 3 | E6: =SUM(E3:E5) -> 211 | F6: =SUM(F3:F5) -> 211
A7: Kasse Wehr | D7: 300 | E7: =ROUND('Kasse-Wehr'!I17,2) -> 1 | F7: 1 | G7: =IF(E7<0,"FEHLER! Aktueller Stand gem. Buchführung darf nicht negativ werden",IF(F7=0,"",IF(E7-F7=0,"Aktueller Stand gem. Buchführung stimmt mit Stand am 31. Dezember überein","FEHLER! Aktueller Stand gem. Buchführung stimmt nicht mit Stand am 31. Dezember überein"))) -> Aktueller Stand gem. Buchführung stimmt mit Stand am 31. Dezember überein
A8: Kasse Jugendwehr | D8: 1 | E8: =ROUND('Kasse-Jugendwehr'!I17,2) -> 8 | F8: 8 | G8: Aktueller Stand gem. Buchführung stimmt mit Stand am 31. Dezember überein
A9: Kasse Musikzug | D9: 1 | E9: =ROUND('Kasse-Musikzug'!I17,2) -> 8 | F9: 8 | G9: Aktueller Stand gem. Buchführung stimmt mit Stand am 31. Dezember überein
A10: Kasse 4 | D10: 1 | E10: =ROUND('Kasse 4'!I17,2) -> 8 | F10: 8 | G10: Aktueller Stand gem. Buchführung stimmt mit Stand am 31. Dezember überein
A11: Kasse 5 | D11: 1 | E11: =ROUND('Kasse 5'!I17,2) -> 1 | F11: 1 | G11: =IF(E11<0,"FEHLER! Aktueller Stand gem. Buchführung darf nicht negativ werden",IF(F11=0,"",IF(E11-F11=0,"Aktueller Stand gem. Buchführung stimmt mit Stand am 31. Dezember überein","FEHLER! Aktueller Stand gem. Buchführung stimmt nicht mit Stand am 31. Dezember überein"))) -> Aktueller Stand gem. Buchführung stimmt mit Stand am 31. Dezember überein
A12: Summe Kassen | D12: =SUM(D7:D11) -> 304 | E12: =SUM(E7:E11) -> 26 | F12: =SUM(F7:F11) -> 26
A13: Stand des Sondervermögens | D13: =D6+D12 -> 307 | E13: =ROUNDDOWN((E6+E12),2) -> 237 | F13: =F6+F12 -> 237
A14: © Ludwig Fink; Landesfeuerwehrverband Schleswig-Holstein | E14: =IF('Gesamt-Einnahmen und Ausgaben'!C18='Übersicht Banken u. Kassen'!E13,"OK","Fehler") -> OK
A17: Prüfung: Umbuchungen zwischen Konten und Kassen sind ausgeglichen: | D17: =ROUNDDOWN(('Bankkonto-Wehr'!D15+'Kasse-Wehr'!D15+'Bankkonto-Jugendwehr'!D15+'Kasse-Jugendwehr'!D15+'Bankkonto-Musikzug'!D15+'Kasse-Musikzug'!D15+'Kasse 4'!D15+'Kasse 5'!D15),2) -> 6200 | E17: =ROUNDDOWN(('Bankkonto-Wehr'!H15+'Kasse-Wehr'!H15+'Bankkonto-Jugendwehr'!H15+'Kasse-Jugendwehr'!H15+'Bankkonto-Musikzug'!H15+'Kasse-Musikzug'!H15+'Kasse 4'!H15+'Kasse 5'!H15),2) -> 6200 | F17: =IF(D17=E17,"OK","Fehler") -> OK
G22: Ergebnis der Kassenprüfung: Mit - Ohne Beanstandungen (Nichtzutreffendes streichen)
E23: Datum: | G23: Kassenprüfung Datum:
E24: Aufgestellt von: Name Kassenführung | G24: Geprüft von: Name Kassenprüfer/-in 1 Name Kassenprüfer/in 2
E25: Unterschrift Kassenführung
E27: Unterschrift | G27: Unterschrift Unterschrift
F33: Sprung zu: | G33: Bedienungshinweise!A1

Sheet Bankkonto-Wehr
B1: Konto 1 | C1: Bankkonto Wehr | D1: ='Übersicht Banken u. Kassen'!B3 -> VR-Bank Kalifornien | F1: ='Übersicht Banken u. Kassen'!C3 -> DE 35 213500 08 000183 223
B2: ='Gesamt-Einnahmen und Ausgaben'!A2 -> Einnahmen- und Ausgaben für das Haushaltsjahr | E2: ='Gesamt-Einnahmen und Ausgaben'!D2 -> 2022 | K2: Planung 2022
B3: ='Gesamt-Einnahmen und Ausgaben'!A3 -> Nr. | C3: ='Gesamt-Einnahmen und Ausgaben'!B3 -> Bezeichnung | D3: ='Gesamt-Einnahmen und Ausgaben'!C3 -> Einnahmen | E3: ='Gesamt-Einnahmen und Ausgaben'!D3 -> Erläuterungen | F3: ='Gesamt-Einnahmen und Ausgaben'!E3 -> Nr. | G3: ='Gesamt-Einnahmen und Ausgaben'!F3 -> Bezeichnung | H3: ='Gesamt-Einnahmen und Ausgaben'!G3 -> Ausgaben | I3: ='Gesamt-Einnahmen und Ausgaben'!H3 -> Erläuterungen | K3: Einnahmen | L3: Ausgaben
B4: 1 | C4: 2 | D4: 3 | E4: 4 | F4: 5 | G4: 6 | H4: 7 | I4: 8
B5: ='Gesamt-Einnahmen und Ausgaben'!A5 -> 0 | C5: ='Gesamt-Einnahmen und Ausgaben'!B5 -> Zuwendungen von Mitgliedern | D5: =SUMIF(F$20:F$169,B5,G$20:G$169) -> 10003 | F5: ='Gesamt-Einnahmen und Ausgaben'!E5 -> 8 | G5: ='Gesamt-Einnahmen und Ausgaben'!F5 -> Ausgaben für Kameradschaftspflege und Versammlungen | H5: =SUMIF(F$20:F$169,F5,H$20:H$169) -> 10008 | K5: 1000 | L5: 2000
B6: ='Gesamt-Einnahmen und Ausgaben'!A6 -> 1 | C6: ='Gesamt-Einnahmen und Ausgaben'!B6 -> Zuwendungen von Dritten | D6: 10002 | F6: ='Gesamt-Einnahmen und Ausgaben'!E6 -> 9 | G6: ='Gesamt-Einnahmen und Ausgaben'!F6 -> Ausgaben für Ehrungen, Geschenke und ähnliche Anlässe | H6: 10001 | K6: 1000 | L6: 1000
B7: ='Gesamt-Einnahmen und Ausgaben'!A7 -> 2 | C7: ='Gesamt-Einnahmen und Ausgaben'!B7 -> Einnahmen aus Veranstaltungen | D7: 10002 | F7: ='Gesamt-Einnahmen und Ausgaben'!E7 -> 10 | G7: ='Gesamt-Einnahmen und Ausgaben'!F7 -> Ausgaben für Veranstaltungen | H7: 10001 | K7: 1000 | L7: 1000
B8: ='Gesamt-Einnahmen und Ausgaben'!A8 -> 3 | C8: ='Gesamt-Einnahmen und Ausgaben'!B8 -> Veräußerung von Vermögens-gegenständen im Einzelwert ab 500 € | D8: 10002 | E8: ='Gesamt-Einnahmen und Ausgaben'!D8 -> Einnahmen aus Abgängen von der Bestandsliste | F8: ='Gesamt-Einnahmen und Ausgaben'!E8 -> 11 | G8: ='Gesamt-Einnahmen und Ausgaben'!F8 -> Erwerb von Vermögensgegenständen im Einzelwert ab 500 € | H8: 10001 | I8: ='Gesamt-Einnahmen und Ausgaben'!H8 -> Ausgaben für Zugänge zur Bestandsliste | K8: 1000 | L8: 1000
B9: ='Gesamt-Einnahmen und Ausgaben'!A9 -> 4 | C9: ='Gesamt-Einnahmen und Ausgaben'!B9 -> Erstattung von Auslagen durch Gemeinde und Dritte | D9: 10002 | F9: ='Gesamt-Einnahmen und Ausgaben'!E9 -> 12 | G9: ='Gesamt-Einnahmen und Ausgaben'!F9 -> Auslagen für Gemeinde und Dritte | H9: 10001 | K9: 1000 | L9: 1000
B10: ='Gesamt-Einnahmen und Ausgaben'!A10 -> 5 | C10: ='Gesamt-Einnahmen und Ausgaben'!B10 -> Sonstige Einnahmen | D10: 10002 | F10: ='Gesamt-Einnahmen und Ausgaben'!E10 -> 13 | G10: ='Gesamt-Einnahmen und Ausgaben'!F10 -> Sonstige Ausgaben | H10: 10001 | K10: 1000 | L10: 1000
B11: ='Gesamt-Einnahmen und Ausgaben'!A11 -> 6 | C11: ='Gesamt-Einnahmen und Ausgaben'!B11 -> Einzahlungen der Gemeinde | D11: 10002 | F11: ='Gesamt-Einnahmen und Ausgaben'!E11 -> 14 | G11: ='Gesamt-Einnahmen und Ausgaben'!F11 -> Auszahlungen an die Gemeinde | H11: 10001 | K11: 1000 | L11: 1000
B12: ='Gesamt-Einnahmen und Ausgaben'!A12 -> 7 | C12: ='Gesamt-Einnahmen und Ausgaben'!B12 -> Entnahme aus der Rücklage | D12: =IF((H5+H6+H7+H8+H9+H10+H11)>(D5+D6+D7+D8+D9+D10+D11),H5+H6+H7+H8+H9+H10+H11-D5-D6-D7-D8-D9-D10-D11,0) -> 0 | E12: Automatische Buchung | F12: ='Gesamt-Einnahmen und Ausgaben'!E12 -> 15 | G12: ='Gesamt-Einnahmen und Ausgaben'!F12 -> Zuführung zur Rücklage | H12: =IF((H5+H6+H7+H8+H9+H10+H11)<(D5+D6+D7+D8+D9+D10+D11),D5+D6+D7+D8+D9+D10+D11-H5-H6-H7-H8-H9-H10-H11,0) -> 1 | I12: Automatische Buchung
B13: ='Gesamt-Einnahmen und Ausgaben'!A13 -> 0-7 | C13: ='Gesamt-Einnahmen und Ausgaben'!B13 -> Gesamteinnahmen | D13: =SUM(D5:D12) -> 70015 | F13: ='Gesamt-Einnahmen und Ausgaben'!E13 -> 8-15 | G13: ='Gesamt-Einnahmen und Ausgaben'!F13 -> Gesamtausgaben | H13: =SUM(H5:H12) -> 70015 | K13: =SUM(K5:K12) -> 7000 | L13: =SUM(L5:L12) -> 8000
B14: © Ludwig Fink; Landesfeuerwehrverband Schleswig-Holstein | G14: ='Gesamt-Einnahmen und Ausgaben'!F14 -> Die Ausgaben werden für gegenseitig deckungsfähig erklärt.
B15: U | C15: Umbuchungen zw. Konten und Kassen | D15: =SUMIF(F$20:F$169,B15,G$20:G$169) -> 1200 | F15: U | G15: Umbuchungen zw. Konten und Kassen | H15: =SUMIF(F$20:F$169,F15,H$20:H$169) -> 1000
A16: Zeilen: | B16: =A169 -> 150 | D16: Bitte Kommentar beachten | G16: ='Übersicht Banken u. Kassen'!D2 -> Stand am 1. Januar gemäß Kontoauszug/ Kassenaufnahmeprotokoll | H16: ='Übersicht Banken u. Kassen'!E2 -> Aktueller Stand gemäß Buchführung
B17: Sprung zu: | C17: Bedienungshinweise!A1 | G17: ='Übersicht Banken u. Kassen'!D3 -> 1 | I17: =G17+G171 -> 202 | J17: =IF(I17<0,"Fehler! Kann nicht negativ werden","OK") -> OK
A19: Beleg-Nr. | B19: Datum | C19: Bezeichnung | F19: Kennziffer | G19: Einnahme/Einzahlung | H19: Ausgabe/Auszahlung | J19: Bemerkungen
A20: 1 | F20: 0 | G20: 10003
A21: =A20+1 -> 2 | C21: Bitte vor Gebrauch Kennziffern und Beträge löschen | F21: 1 | G21: 10002
A22: =A21+1 -> 3 | F22: 2 | G22: 10002
A23: 4 | F23: 3 | G23: 10002
A24: 5 | F24: 4 | G24: 10002
A25: 6 | F25: 5 | G25: 10002
A26: 7 | F26: 6 | G26: 10002
A27: 8 | F27: 8 | H27: 10001
A28: 9 | F28: 9 | H28: 10001
A29: 10 | F29: 10 | H29: 10001
A30: 11 | F30: 11 | H30: 10001
A31: 12 | F31: 12 | H31: 10001
A32: 13 | F32: 13 | H32: 10001
A33: 14 | F33: 14 | H33: 10001
A34: 15 | F34: u | H34: 1000
A35: 16 | F35: u | G35: 500
A36: 17 | F36: u | G36: 500
A37: 18 | F37: 8 | H37: 7
A38: 19 | F38: u | G38: 200
A39: 20
A40: 21
A41: 22
A42: 23
A43: 24
A44: 25
A45: 26
A46: 27
A47: 28
A48: 29
A49: 30
A50: 31
A51: 32
A52: 33
A53: 34
A54: 35
A55: 36
A56: 37
A57: 38
A58: 39
A59: 40
A60: 41
A61: 42
A62: 43
A63: 44
A64: 45
A65: 46
A66: 47
A67: 48
A68: 49
A69: 50
A70: 51
A71: 52
A72: 53
A73: 54
A74: 55
A75: 56
A76: 57
A77: 58
A78: 59
A79: 60
A80: 61
A81: 62
A82: 63
A83: 64
A84: 65
A85: 66
A86: 67
A87: 68
A88: 69
A89: 70
A90: 71
A91: 72
A92: 73
A93: 74
A94: 75
A95: 76
A96: 77
A97: 78
A98: 79
A99: 80
A100: 81
A101: 82
A102: 83
A103: 84
A104: 85
A105: 86
A106: 87
A107: 88
A108: 89
A109: 90
A110: 91
A111: 92
A112: 93
A113: 94
A114: 95
A115: 96
A116: 97
A117: 98
A118: 99
A119: 100
A120: 101
A121: 102
A122: 103
A123: 104
A124: 105
A125: 106
A126: 107
A127: 108
A128: 109
A129: 110
A130: 111
A131: 112
A132: 113
A133: 114
A134: 115
A135: 116
A136: =A135+1 -> 117
A137: 118
A138: 119
A139: 120
A140: 121
A141: 122
A142: 123
A143: 124
A144: 125
A145: 126
A146: 127
A147: 128
A148: 129
A149: 130
A150: 131
A151: 132
A152: 133
A153: 134
A154: 135
A155: 136
A156: 137
A157: 138
A158: 139
A159: 140
A160: 141
A161: 142
A162: 143
A163: 144
A164: 145
A165: 146
A166: 147
A167: 148
A168: 149
A169: 150
F170: Summe: | G170: =ROUND(SUM(G20:G169),2) -> 71215 | H170: =ROUND(SUM(H20:H169),2) -> 71014
F171: aktuelle Veränderung | G171: =G170-H170 -> 201
F173: Kontrolle | G173: =ROUND(SUM(D5:D11)-G170+D15,2) -> 0 | H173: =ROUND(SUM(H5:H11)-H170+H15,2) -> 0
F174: muss Null ergeben | G174: =IF(G173=0,"OK","Fehler") -> OK | H174: =IF(H173=0,"OK","Fehler") -> OK

Sheet Kasse-Wehr
B1: Kasse 1 | C1: Kasse Wehr
B2: ='Gesamt-Einnahmen und Ausgaben'!A2 -> Einnahmen- und Ausgaben für das Haushaltsjahr | E2: ='Gesamt-Einnahmen und Ausgaben'!D2 -> 2022 | K2: ='Bankkonto-Wehr'!K2:L2 -> Planung 2022
B3: ='Gesamt-Einnahmen und Ausgaben'!A3 -> Nr. | C3: ='Gesamt-Einnahmen und Ausgaben'!B3 -> Bezeichnung | D3: ='Gesamt-Einnahmen und Ausgaben'!C3 -> Einnahmen | E3: ='Gesamt-Einnahmen und Ausgaben'!D3 -> Erläuterungen | F3: ='Gesamt-Einnahmen und Ausgaben'!E3 -> Nr. | G3: ='Gesamt-Einnahmen und Ausgaben'!F3 -> Bezeichnung | H3: ='Gesamt-Einnahmen und Ausgaben'!G3 -> Ausgaben | I3: ='Gesamt-Einnahmen und Ausgaben'!H3 -> Erläuterungen | K3: Einnahmen | L3: Ausgaben
B4: 1 | C4: 2 | D4: 3 | E4: 4 | F4: 5 | G4: 6 | H4: 7 | I4: 8
B5: ='Gesamt-Einnahmen und Ausgaben'!A5 -> 0 | C5: ='Gesamt-Einnahmen und Ausgaben'!B5 -> Zuwendungen von Mitgliedern | D5: =SUMIF(F$20:F$169,B5,G$20:G$169) -> 1 | F5: ='Gesamt-Einnahmen und Ausgaben'!E5 -> 8 | G5: ='Gesamt-Einnahmen und Ausgaben'!F5 -> Ausgaben für Kameradschaftspflege und Versammlungen | H5: =SUMIF(F$20:F$169,F5,H$20:H$169) -> 100 | K5: 1000 | L5: 2000
B6: ='Gesamt-Einnahmen und Ausgaben'!A6 -> 1 | C6: ='Gesamt-Einnahmen und Ausgaben'!B6 -> Zuwendungen von Dritten | D6: 0 | F6: ='Gesamt-Einnahmen und Ausgaben'!E6 -> 9 | G6: ='Gesamt-Einnahmen und Ausgaben'!F6 -> Ausgaben für Ehrungen, Geschenke und ähnliche Anlässe | H6: 0 | K6: 1000 | L6: 1000
B7: ='Gesamt-Einnahmen und Ausgaben'!A7 -> 2 | C7: ='Gesamt-Einnahmen und Ausgaben'!B7 -> Einnahmen aus Veranstaltungen | D7: 0 | F7: ='Gesamt-Einnahmen und Ausgaben'!E7 -> 10 | G7: ='Gesamt-Einnahmen und Ausgaben'!F7 -> Ausgaben für Veranstaltungen | H7: 0 | K7: 1000 | L7: 1000
B8: ='Gesamt-Einnahmen und Ausgaben'!A8 -> 3 | C8: ='Gesamt-Einnahmen und Ausgaben'!B8 -> Veräußerung von Vermögens-gegenständen im Einzelwert ab 500 € | D8: 0 | E8: ='Gesamt-Einnahmen und Ausgaben'!D8 -> Einnahmen aus Abgängen von der Bestandsliste | F8: ='Gesamt-Einnahmen und Ausgaben'!E8 -> 11 | G8: ='Gesamt-Einnahmen und Ausgaben'!F8 -> Erwerb von Vermögensgegenständen im Einzelwert ab 500 € | H8: 0 | I8: ='Gesamt-Einnahmen und Ausgaben'!H8 -> Ausgaben für Zugänge zur Bestandsliste | K8: 1000 | L8: 1000
B9: ='Gesamt-Einnahmen und Ausgaben'!A9 -> 4 | C9: ='Gesamt-Einnahmen und Ausgaben'!B9 -> Erstattung von Auslagen durch Gemeinde und Dritte | D9: 0 | F9: ='Gesamt-Einnahmen und Ausgaben'!E9 -> 12 | G9: ='Gesamt-Einnahmen und Ausgaben'!F9 -> Auslagen für Gemeinde und Dritte | H9: 0 | K9: 1000 | L9: 1000
B10: ='Gesamt-Einnahmen und Ausgaben'!A10 -> 5 | C10: ='Gesamt-Einnahmen und Ausgaben'!B10 -> Sonstige Einnahmen | D10: 0 | F10: ='Gesamt-Einnahmen und Ausgaben'!E10 -> 13 | G10: ='Gesamt-Einnahmen und Ausgaben'!F10 -> Sonstige Ausgaben | H10: 0 | K10: 1000 | L10: 1000
B11: ='Gesamt-Einnahmen und Ausgaben'!A11 -> 6 | C11: ='Gesamt-Einnahmen und Ausgaben'!B11 -> Einzahlungen der Gemeinde | D11: 0 | F11: ='Gesamt-Einnahmen und Ausgaben'!E11 -> 14 | G11: ='Gesamt-Einnahmen und Ausgaben'!F11 -> Auszahlungen an die Gemeinde | H11: 0 | K11: 1000 | L11: 1000
B12: ='Gesamt-Einnahmen und Ausgaben'!A12 -> 7 | C12: ='Gesamt-Einnahmen und Ausgaben'!B12 -> Entnahme aus der Rücklage | D12: =IF((H5+H6+H7+H8+H9+H10+H11)>(D5+D6+D7+D8+D9+D10+D11),H5+H6+H7+H8+H9+H10+H11-D5-D6-D7-D8-D9-D10-D11,0) -> 99 | E12: Automatische Buchung | F12: ='Gesamt-Einnahmen und Ausgaben'!E12 -> 15 | G12: ='Gesamt-Einnahmen und Ausgaben'!F12 -> Zuführung zur Rücklage | H12: =IF((H5+H6+H7+H8+H9+H10+H11)<(D5+D6+D7+D8+D9+D10+D11),D5+D6+D7+D8+D9+D10+D11-H5-H6-H7-H8-H9-H10-H11,0) -> 0 | I12: Automatische Buchung
B13: ='Gesamt-Einnahmen und Ausgaben'!A13 -> 0-7 | C13: ='Gesamt-Einnahmen und Ausgaben'!B13 -> Gesamteinnahmen | D13: =SUM(D5:D12) -> 100 | F13: ='Gesamt-Einnahmen und Ausgaben'!E13 -> 8-15 | G13: ='Gesamt-Einnahmen und Ausgaben'!F13 -> Gesamtausgaben | H13: =SUM(H5:H12) -> 100 | K13: =SUM(K5:K12) -> 7000 | L13: =SUM(L5:L12) -> 8000
B14: © Ludwig Fink; Landesfeuerwehrverband Schleswig-Holstein | G14: ='Gesamt-Einnahmen und Ausgaben'!F14 -> Die Ausgaben werden für gegenseitig deckungsfähig erklärt.
B15: U | C15: Umbuchungen zw. Konten und Kassen | D15: =SUMIF(F$20:F$169,B15,G$20:G$169) -> 0 | F15: U | G15: Umbuchungen zw. Konten und Kassen | H15: =SUMIF(F$20:F$169,F15,H$20:H$169) -> 200
A16: Zeilen: | B16: =A169 -> 150 | D16: Bitte Kommentar beachten | G16: ='Übersicht Banken u. Kassen'!D2 -> Stand am 1. Januar gemäß Kontoauszug/ Kassenaufnahmeprotokoll | H16: ='Übersicht Banken u. Kassen'!E2 -> Aktueller Stand gemäß Buchführung
B17: Sprung zu: | C17: Bedienungshinweise!A1 | G17: ='Übersicht Banken u. Kassen'!D7 -> 300 | I17: =G17+G171 -> 1 | J17: =IF(I17<0,"Fehler! Kann nicht negativ werden","OK") -> OK
A19: Beleg-Nr. | B19: Datum | C19: Bezeichnung | F19: Kennziffer | G19: Einnahme/Einzahlung | H19: Ausgabe/Auszahlung | J19: Bemerkungen
A20: 1 | F20: 8 | H20: 100
A21: =A20+1 -> 2 | C21: Bitte vor Gebrauch Kennziffern und Beträge löschen | F21: 0 | G21: 1
A22: =A21+1 -> 3 | F22: u | H22: 200
A23: 4
A24: 5
A25: 6
A26: 7
A27: 8
A28: 9
A29: 10
A30: 11
A31: 12
A32: 13
A33: 14
A34: 15
A35: 16
A36: 17
A37: 18
A38: 19
A39: 20
A40: 21
A41: 22
A42: 23
A43: 24
A44: 25
A45: 26
A46: 27
A47: 28
A48: 29
A49: 30
A50: 31
A51: 32
A52: 33
A53: 34
A54: 35
A55: 36
A56: 37
A57: 38
A58: 39
A59: 40
A60: 41
A61: 42
A62: 43
A63: 44
A64: 45
A65: 46
A66: 47
A67: 48
A68: 49
A69: 50
A70: 51
A71: 52
A72: 53
A73: 54
A74: 55
A75: 56
A76: 57
A77: 58
A78: 59
A79: 60
A80: 61
A81: 62
A82: 63
A83: 64
A84: 65
A85: 66
A86: 67
A87: 68
A88: 69
A89: 70
A90: 71
A91: 72
A92: 73
A93: 74
A94: 75
A95: 76
A96: 77
A97: 78
A98: 79
A99: 80
A100: 81
A101: 82
A102: 83
A103: 84
A104: 85
A105: 86
A106: 87
A107: 88
A108: 89
A109: 90
A110: 91
A111: 92
A112: 93
A113: 94
A114: 95
A115: 96
A116: 97
A117: 98
A118: 99
A119: 100
A120: 101
A121: 102
A122: 103
A123: 104
A124: 105
A125: 106
A126: 107
A127: 108
A128: 109
A129: 110
A130: 111
A131: 112
A132: 113
A133: 114
A134: 115
A135: 116
A136: =A135+1 -> 117
A137: 118
A138: 119
A139: 120
A140: 121
A141: 122
A142: 123
A143: 124
A144: 125
A145: 126
A146: 127
A147: 128
A148: 129
A149: 130
A150: 131
A151: 132
A152: 133
A153: 134
A154: 135
A155: 136
A156: 137
A157: 138
A158: 139
A159: 140
A160: 141
A161: 142
A162: 143
A163: 144
A164: 145
A165: 146
A166: 147
A167: 148
A168: 149
A169: 150
F170: Summe: | G170: =ROUND(SUM(G20:G169),2) -> 1 | H170: =ROUND(SUM(H20:H169),2) -> 300
F171: aktuelle Veränderung | G171: =G170-H170 -> -299
F173: Kontrolle | G173: =ROUND(SUM(D5:D11)-G170+D15,2) -> 0 | H173: =ROUND(SUM(H5:H11)-H170+H15,2) -> 0
F174: muss Null ergeben | G174: =IF(G173=0,"OK","Fehler") -> OK | H174: =IF(H173=0,"OK","Fehler") -> OK

Sheet Bankkonto-Jugendwehr
B1: Konto 2 | C1: Jugendwehr | D1: ='Übersicht Banken u. Kassen'!B4 -> VR-Bank Kalifornien | F1: ='Übersicht Banken u. Kassen'!C4 -> DE 35 213500 08 001183 223
B2: ='Gesamt-Einnahmen und Ausgaben'!A2 -> Einnahmen- und Ausgaben für das Haushaltsjahr | E2: ='Gesamt-Einnahmen und Ausgaben'!D2 -> 2022 | K2: ='Bankkonto-Wehr'!K2:L2 -> Planung 2022
B3: ='Gesamt-Einnahmen und Ausgaben'!A3 -> Nr. | C3: ='Gesamt-Einnahmen und Ausgaben'!B3 -> Bezeichnung | D3: ='Gesamt-Einnahmen und Ausgaben'!C3 -> Einnahmen | E3: ='Gesamt-Einnahmen und Ausgaben'!D3 -> Erläuterungen | F3: ='Gesamt-Einnahmen und Ausgaben'!E3 -> Nr. | G3: ='Gesamt-Einnahmen und Ausgaben'!F3 -> Bezeichnung | H3: ='Gesamt-Einnahmen und Ausgaben'!G3 -> Ausgaben | I3: ='Gesamt-Einnahmen und Ausgaben'!H3 -> Erläuterungen | K3: Einnahmen | L3: Ausgaben
B4: 1 | C4: 2 | D4: 3 | E4: 4 | F4: 5 | G4: 6 | H4: 7 | I4: 8
B5: ='Gesamt-Einnahmen und Ausgaben'!A5 -> 0 | C5: ='Gesamt-Einnahmen und Ausgaben'!B5 -> Zuwendungen von Mitgliedern | D5: =SUMIF(F$20:F$169,B5,G$20:G$169) -> 10002 | F5: ='Gesamt-Einnahmen und Ausgaben'!E5 -> 8 | G5: ='Gesamt-Einnahmen und Ausgaben'!F5 -> Ausgaben für Kameradschaftspflege und Versammlungen | H5: =SUMIF(F$20:F$169,F5,H$20:H$169) -> 10001 | K5: 1000 | L5: 2000
B6: ='Gesamt-Einnahmen und Ausgaben'!A6 -> 1 | C6: ='Gesamt-Einnahmen und Ausgaben'!B6 -> Zuwendungen von Dritten | D6: 10002 | F6: ='Gesamt-Einnahmen und Ausgaben'!E6 -> 9 | G6: ='Gesamt-Einnahmen und Ausgaben'!F6 -> Ausgaben für Ehrungen, Geschenke und ähnliche Anlässe | H6: 10008 | K6: 1000 | L6: 1000
B7: ='Gesamt-Einnahmen und Ausgaben'!A7 -> 2 | C7: ='Gesamt-Einnahmen und Ausgaben'!B7 -> Einnahmen aus Veranstaltungen | D7: 10002 | F7: ='Gesamt-Einnahmen und Ausgaben'!E7 -> 10 | G7: ='Gesamt-Einnahmen und Ausgaben'!F7 -> Ausgaben für Veranstaltungen | H7: 10001 | K7: 1000 | L7: 1000
B8: ='Gesamt-Einnahmen und Ausgaben'!A8 -> 3 | C8: ='Gesamt-Einnahmen und Ausgaben'!B8 -> Veräußerung von Vermögens-gegenständen im Einzelwert ab 500 € | D8: 10002 | E8: ='Gesamt-Einnahmen und Ausgaben'!D8 -> Einnahmen aus Abgängen von der Bestandsliste | F8: ='Gesamt-Einnahmen und Ausgaben'!E8 -> 11 | G8: ='Gesamt-Einnahmen und Ausgaben'!F8 -> Erwerb von Vermögensgegenständen im Einzelwert ab 500 € | H8: 10001 | I8: ='Gesamt-Einnahmen und Ausgaben'!H8 -> Ausgaben für Zugänge zur Bestandsliste | K8: 1000 | L8: 1000
B9: ='Gesamt-Einnahmen und Ausgaben'!A9 -> 4 | C9: ='Gesamt-Einnahmen und Ausgaben'!B9 -> Erstattung von Auslagen durch Gemeinde und Dritte | D9: 10002 | F9: ='Gesamt-Einnahmen und Ausgaben'!E9 -> 12 | G9: ='Gesamt-Einnahmen und Ausgaben'!F9 -> Auslagen für Gemeinde und Dritte | H9: 10001 | K9: 1000 | L9: 1000
B10: ='Gesamt-Einnahmen und Ausgaben'!A10 -> 5 | C10: ='Gesamt-Einnahmen und Ausgaben'!B10 -> Sonstige Einnahmen | D10: 10002 | F10: ='Gesamt-Einnahmen und Ausgaben'!E10 -> 13 | G10: ='Gesamt-Einnahmen und Ausgaben'!F10 -> Sonstige Ausgaben | H10: 10001 | K10: 1000 | L10: 1000
B11: ='Gesamt-Einnahmen und Ausgaben'!A11 -> 6 | C11: ='Gesamt-Einnahmen und Ausgaben'!B11 -> Einzahlungen der Gemeinde | D11: 10002 | F11: ='Gesamt-Einnahmen und Ausgaben'!E11 -> 14 | G11: ='Gesamt-Einnahmen und Ausgaben'!F11 -> Auszahlungen an die Gemeinde | H11: 10001 | K11: 1000 | L11: 1000
B12: ='Gesamt-Einnahmen und Ausgaben'!A12 -> 7 | C12: ='Gesamt-Einnahmen und Ausgaben'!B12 -> Entnahme aus der Rücklage | D12: =IF((H5+H6+H7+H8+H9+H10+H11)>(D5+D6+D7+D8+D9+D10+D11),H5+H6+H7+H8+H9+H10+H11-D5-D6-D7-D8-D9-D10-D11,0) -> 0 | E12: Automatische Buchung | F12: ='Gesamt-Einnahmen und Ausgaben'!E12 -> 15 | G12: ='Gesamt-Einnahmen und Ausgaben'!F12 -> Zuführung zur Rücklage | H12: =IF((H5+H6+H7+H8+H9+H10+H11)<(D5+D6+D7+D8+D9+D10+D11),D5+D6+D7+D8+D9+D10+D11-H5-H6-H7-H8-H9-H10-H11,0) -> 0 | I12: Automatische Buchung
B13: ='Gesamt-Einnahmen und Ausgaben'!A13 -> 0-7 | C13: ='Gesamt-Einnahmen und Ausgaben'!B13 -> Gesamteinnahmen | D13: =SUM(D5:D12) -> 70014 | F13: ='Gesamt-Einnahmen und Ausgaben'!E13 -> 8-15 | G13: ='Gesamt-Einnahmen und Ausgaben'!F13 -> Gesamtausgaben | H13: =SUM(H5:H12) -> 70014 | K13: =SUM(K5:K12) -> 7000 | L13: =SUM(L5:L12) -> 8000
B14: © Ludwig Fink; Landesfeuerwehrverband Schleswig-Holstein | G14: ='Gesamt-Einnahmen und Ausgaben'!F14 -> Die Ausgaben werden für gegenseitig deckungsfähig erklärt.
B15: U | C15: Umbuchungen zw. Konten und Kassen | D15: =SUMIF(F$20:F$169,B15,G$20:G$169) -> 1000 | F15: U | G15: Umbuchungen zw. Konten und Kassen | H15: =SUMIF(F$20:F$169,F15,H$20:H$169) -> 1000
A16: Zeilen: | B16: =A169 -> 150 | D16: Bitte Kommentar beachten | G16: ='Übersicht Banken u. Kassen'!D2 -> Stand am 1. Januar gemäß Kontoauszug/ Kassenaufnahmeprotokoll | H16: ='Übersicht Banken u. Kassen'!E2 -> Aktueller Stand gemäß Buchführung
B17: Sprung zu: | C17: Bedienungshinweise!A1 | G17: ='Übersicht Banken u. Kassen'!D4 -> 1 | I17: =G17+G171 -> 1 | J17: =IF(I17<0,"Fehler! Kann nicht negativ werden","OK") -> OK
A19: Beleg-Nr. | B19: Datum | C19: Bezeichnung | F19: Kennziffer | G19: Einnahme/Einzahlung | H19: Ausgabe/Auszahlung | J19: Bemerkungen
A20: 1 | F20: 0 | G20: 10002
A21: =A20+1 -> 2 | C21: Bitte vor Gebrauch Kennziffern und Beträge löschen | F21: 1 | G21: 10002
A22: =A21+1 -> 3 | F22: 2 | G22: 10002
A23: 4 | F23: 3 | G23: 10002
A24: 5 | F24: 4 | G24: 10002
A25: 6 | F25: 5 | G25: 10002
A26: 7 | F26: 6 | G26: 10002
A27: 8 | F27: 8 | H27: 10001
A28: 9 | F28: 9 | H28: 10001
A29: 10 | F29: 10 | H29: 10001
A30: 11 | F30: 11 | H30: 10001
A31: 12 | F31: 12 | H31: 10001
A32: 13 | F32: 13 | H32: 10001
A33: 14 | F33: 14 | H33: 10001
A34: 15 | F34: u | H34: 1000
A35: 16 | F35: u | G35: 500
A36: 17 | F36: u | G36: 500
A37: 18 | F37: 9 | H37: 7
A38: 19
A39: 20
A40: 21
A41: 22
A42: 23
A43: 24
A44: 25
A45: 26
A46: 27
A47: 28
A48: 29
A49: 30
A50: 31
A51: 32
A52: 33
A53: 34
A54: 35
A55: 36
A56: 37
A57: 38
A58: 39
A59: 40
A60: 41
A61: 42
A62: 43
A63: 44
A64: 45
A65: 46
A66: 47
A67: 48
A68: 49
A69: 50
A70: 51
A71: 52
A72: 53
A73: 54
A74: 55
A75: 56
A76: 57
A77: 58
A78: 59
A79: 60
A80: 61
A81: 62
A82: 63
A83: 64
A84: 65
A85: 66
A86: 67
A87: 68
A88: 69
A89: 70
A90: 71
A91: 72
A92: 73
A93: 74
A94: 75
A95: 76
A96: 77
A97: 78
A98: 79
A99: 80
A100: 81
A101: 82
A102: 83
A103: 84
A104: 85
A105: 86
A106: 87
A107: 88
A108: 89
A109: 90
A110: 91
A111: 92
A112: 93
A113: 94
A114: 95
A115: 96
A116: 97
A117: 98
A118: 99
A119: 100
A120: =A119+1 -> 101
A121: 102
A122: 103
A123: 104
A124: 105
A125: 106
A126: 107
A127: 108
A128: 109
A129: 110
A130: 111
A131: 112
A132: 113
A133: 114
A134: 115
A135: 116
A136: =A135+1 -> 117
A137: 118
A138: 119
A139: 120
A140: 121
A141: 122
A142: 123
A143: 124
A144: 125
A145: 126
A146: 127
A147: 128
A148: 129
A149: 130
A150: 131
A151: 132
A152: 133
A153: 134
A154: 135
A155: 136
A156: 137
A157: 138
A158: 139
A159: 140
A160: 141
A161: 142
A162: 143
A163: 144
A164: 145
A165: 146
A166: 147
A167: 148
A168: 149
A169: =A168+1 -> 150
F170: Summe: | G170: =ROUND(SUM(G20:G169),2) -> 71014 | H170: =ROUND(SUM(H20:H169),2) -> 71014
F171: aktuelle Veränderung | G171: =G170-H170 -> 0
F173: Kontrolle | G173: =ROUND(SUM(D5:D11)-G170+D15,2) -> 0 | H173: =ROUND(SUM(H5:H11)-H170+H15,2) -> 0
F174: muss Null ergeben | G174: =IF(G173=0,"OK","Fehler") -> OK | H174: =IF(H173=0,"OK","Fehler") -> OK

Sheet Kasse-Jugendwehr
B1: Kasse 2 | C1: Jugendfeuerwehr
B2: ='Gesamt-Einnahmen und Ausgaben'!A2 -> Einnahmen- und Ausgaben für das Haushaltsjahr | E2: ='Gesamt-Einnahmen und Ausgaben'!D2 -> 2022 | K2: ='Bankkonto-Wehr'!K2:L2 -> Planung 2022
B3: ='Gesamt-Einnahmen und Ausgaben'!A3 -> Nr. | C3: ='Gesamt-Einnahmen und Ausgaben'!B3 -> Bezeichnung | D3: ='Gesamt-Einnahmen und Ausgaben'!C3 -> Einnahmen | E3: ='Gesamt-Einnahmen und Ausgaben'!D3 -> Erläuterungen | F3: ='Gesamt-Einnahmen und Ausgaben'!E3 -> Nr. | G3: ='Gesamt-Einnahmen und Ausgaben'!F3 -> Bezeichnung | H3: ='Gesamt-Einnahmen und Ausgaben'!G3 -> Ausgaben | I3: ='Gesamt-Einnahmen und Ausgaben'!H3 -> Erläuterungen | K3: Einnahmen | L3: Ausgaben
B4: 1 | C4: 2 | D4: 3 | E4: 4 | F4: 5 | G4: 6 | H4: 7 | I4: 8
B5: ='Gesamt-Einnahmen und Ausgaben'!A5 -> 0 | C5: ='Gesamt-Einnahmen und Ausgaben'!B5 -> Zuwendungen von Mitgliedern | D5: =SUMIF(F$20:F$169,B5,G$20:G$169) -> 10002 | F5: ='Gesamt-Einnahmen und Ausgaben'!E5 -> 8 | G5: ='Gesamt-Einnahmen und Ausgaben'!F5 -> Ausgaben für Kameradschaftspflege und Versammlungen | H5: =SUMIF(F$20:F$169,F5,H$20:H$169) -> 10001 | K5: 1000 | L5: 2000
B6: ='Gesamt-Einnahmen und Ausgaben'!A6 -> 1 | C6: ='Gesamt-Einnahmen und Ausgaben'!B6 -> Zuwendungen von Dritten | D6: 10002 | F6: ='Gesamt-Einnahmen und Ausgaben'!E6 -> 9 | G6: ='Gesamt-Einnahmen und Ausgaben'!F6 -> Ausgaben für Ehrungen, Geschenke und ähnliche Anlässe | H6: 10001 | K6: 1000 | L6: 1000
B7: ='Gesamt-Einnahmen und Ausgaben'!A7 -> 2 | C7: ='Gesamt-Einnahmen und Ausgaben'!B7 -> Einnahmen aus Veranstaltungen | D7: 10002 | F7: ='Gesamt-Einnahmen und Ausgaben'!E7 -> 10 | G7: ='Gesamt-Einnahmen und Ausgaben'!F7 -> Ausgaben für Veranstaltungen | H7: 10001 | K7: 1000 | L7: 1000
B8: ='Gesamt-Einnahmen und Ausgaben'!A8 -> 3 | C8: ='Gesamt-Einnahmen und Ausgaben'!B8 -> Veräußerung von Vermögens-gegenständen im Einzelwert ab 500 € | D8: 10002 | E8: ='Gesamt-Einnahmen und Ausgaben'!D8 -> Einnahmen aus Abgängen von der Bestandsliste | F8: ='Gesamt-Einnahmen und Ausgaben'!E8 -> 11 | G8: ='Gesamt-Einnahmen und Ausgaben'!F8 -> Erwerb von Vermögensgegenständen im Einzelwert ab 500 € | H8: 10001 | K8: 1000 | L8: 1000
B9: ='Gesamt-Einnahmen und Ausgaben'!A9 -> 4 | C9: ='Gesamt-Einnahmen und Ausgaben'!B9 -> Erstattung von Auslagen durch Gemeinde und Dritte | D9: 10002 | F9: ='Gesamt-Einnahmen und Ausgaben'!E9 -> 12 | G9: ='Gesamt-Einnahmen und Ausgaben'!F9 -> Auslagen für Gemeinde und Dritte | H9: 10001 | K9: 1000 | L9: 1000
B10: ='Gesamt-Einnahmen und Ausgaben'!A10 -> 5 | C10: ='Gesamt-Einnahmen und Ausgaben'!B10 -> Sonstige Einnahmen | D10: 10002 | F10: ='Gesamt-Einnahmen und Ausgaben'!E10 -> 13 | G10: ='Gesamt-Einnahmen und Ausgaben'!F10 -> Sonstige Ausgaben | H10: 10001 | K10: 1000 | L10: 1000
B11: ='Gesamt-Einnahmen und Ausgaben'!A11 -> 6 | C11: ='Gesamt-Einnahmen und Ausgaben'!B11 -> Einzahlungen der Gemeinde | D11: 10002 | F11: ='Gesamt-Einnahmen und Ausgaben'!E11 -> 14 | G11: ='Gesamt-Einnahmen und Ausgaben'!F11 -> Auszahlungen an die Gemeinde | H11: 10001 | K11: 1000 | L11: 1000
B12: ='Gesamt-Einnahmen und Ausgaben'!A12 -> 7 | C12: ='Gesamt-Einnahmen und Ausgaben'!B12 -> Entnahme aus der Rücklage | D12: =IF((H5+H6+H7+H8+H9+H10+H11)>(D5+D6+D7+D8+D9+D10+D11),H5+H6+H7+H8+H9+H10+H11-D5-D6-D7-D8-D9-D10-D11,0) -> 0 | E12: Automatische Buchung | F12: ='Gesamt-Einnahmen und Ausgaben'!E12 -> 15 | G12: ='Gesamt-Einnahmen und Ausgaben'!F12 -> Zuführung zur Rücklage | H12: =IF((H5+H6+H7+H8+H9+H10+H11)<(D5+D6+D7+D8+D9+D10+D11),D5+D6+D7+D8+D9+D10+D11-H5-H6-H7-H8-H9-H10-H11,0) -> 7 | I12: Automatische Buchung
B13: ='Gesamt-Einnahmen und Ausgaben'!A13 -> 0-7 | C13: ='Gesamt-Einnahmen und Ausgaben'!B13 -> Gesamteinnahmen | D13: =SUM(D5:D12) -> 70014 | F13: ='Gesamt-Einnahmen und Ausgaben'!E13 -> 8-15 | G13: ='Gesamt-Einnahmen und Ausgaben'!F13 -> Gesamtausgaben | H13: =SUM(H5:H12) -> 70014 | K13: =SUM(K5:K12) -> 7000 | L13: =SUM(L5:L12) -> 8000
B14: © Ludwig Fink; Landesfeuerwehrverband Schleswig-Holstein | G14: ='Gesamt-Einnahmen und Ausgaben'!F14 -> Die Ausgaben werden für gegenseitig deckungsfähig erklärt.
B15: U | C15: Umbuchungen zw. Konten und Kassen | D15: =SUMIF(F$20:F$169,B15,G$20:G$169) -> 1000 | F15: U | G15: Umbuchungen zw. Konten und Kassen | H15: =SUMIF(F$20:F$169,F15,H$20:H$169) -> 1000
A16: Zeilen: | B16: =A169 -> 150 | D16: Bitte Kommentar beachten | G16: ='Übersicht Banken u. Kassen'!D2 -> Stand am 1. Januar gemäß Kontoauszug/ Kassenaufnahmeprotokoll | H16: ='Übersicht Banken u. Kassen'!E2 -> Aktueller Stand gemäß Buchführung
B17: Sprung zu: | C17: Bedienungshinweise!A1 | G17: ='Übersicht Banken u. Kassen'!D8 -> 1 | I17: =G17+G171 -> 8 | J17: =IF(I17<0,"Fehler! Kann nicht negativ werden","OK") -> OK
A19: Beleg-Nr. | B19: Datum | C19: Bezeichnung | F19: Kennziffer | G19: Einnahme/Einzahlung | H19: Ausgabe/Auszahlung | J19: Bemerkungen
A20: 1 | F20: 0 | G20: 10002
A21: =A20+1 -> 2 | C21: Bitte vor Gebrauch Kennziffern und Beträge löschen | F21: 1 | G21: 10002
A22: =A21+1 -> 3 | F22: 2 | G22: 10002
A23: 4 | F23: 3 | G23: 10002
A24: 5 | F24: 4 | G24: 10002
A25: 6 | F25: 5 | G25: 10002
A26: 7 | F26: 6 | G26: 10002
A27: 8 | F27: 8 | H27: 10001
A28: 9 | F28: 9 | H28: 10001
A29: 10 | F29: 10 | H29: 10001
A30: 11 | F30: 11 | H30: 10001
A31: 12 | F31: 12 | H31: 10001
A32: 13 | F32: 13 | H32: 10001
A33: 14 | F33: 14 | H33: 10001
A34: 15 | F34: u | H34: 1000
A35: 16 | F35: u | G35: 500
A36: 17 | F36: u | G36: 500
A37: 18
A38: 19
A39: 20
A40: 21
A41: 22
A42: 23
A43: 24
A44: 25
A45: 26
A46: 27
A47: 28
A48: 29
A49: 30
A50: 31
A51: 32
A52: 33
A53: 34
A54: 35
A55: 36
A56: 37
A57: 38
A58: 39
A59: 40
A60: 41
A61: 42
A62: 43
A63: 44
A64: 45
A65: 46
A66: 47
A67: 48
A68: 49
A69: 50
A70: 51
A71: 52
A72: 53
A73: 54
A74: 55
A75: 56
A76: 57
A77: 58
A78: 59
A79: 60
A80: 61
A81: 62
A82: 63
A83: 64
A84: 65
A85: 66
A86: 67
A87: 68
A88: 69
A89: 70
A90: 71
A91: 72
A92: 73
A93: 74
A94: 75
A95: 76
A96: 77
A97: 78
A98: 79
A99: 80
A100: 81
A101: 82
A102: 83
A103: 84
A104: 85
A105: 86
A106: 87
A107: 88
A108: 89
A109: 90
A110: 91
A111: 92
A112: 93
A113: 94
A114: 95
A115: 96
A116: 97
A117: 98
A118: 99
A119: 100
A120: 101
A121: 102
A122: 103
A123: 104
A124: 105
A125: 106
A126: 107
A127: 108
A128: 109
A129: 110
A130: 111
A131: 112
A132: 113
A133: 114
A134: 115
A135: 116
A136: =A135+1 -> 117
A137: 118
A138: 119
A139: 120
A140: 121
A141: 122
A142: 123
A143: 124
A144: 125
A145: 126
A146: 127
A147: 128
A148: 129
A149: 130
A150: 131
A151: 132
A152: 133
A153: 134
A154: 135
A155: 136
A156: 137
A157: 138
A158: 139
A159: 140
A160: 141
A161: 142
A162: 143
A163: 144
A164: 145
A165: 146
A166: 147
A167: 148
A168: 149
A169: 150
F170: Summe: | G170: =ROUND(SUM(G20:G169),2) -> 71014 | H170: =ROUND(SUM(H20:H169),2) -> 71007
F171: aktuelle Veränderung | G171: =G170-H170 -> 7
F173: Kontrolle | G173: =ROUND(SUM(D5:D11)-G170+D15,2) -> 0 | H173: =ROUND(SUM(H5:H11)-H170+H15,2) -> 0
F174: muss Null ergeben | G174: =IF(G173=0,"OK","Fehler") -> OK | H174: =IF(H173=0,"OK","Fehler") -> OK

Sheet Bankkonto-Musikzug
B1: Bank 3 | C1: Musikzug | D1: ='Übersicht Banken u. Kassen'!B5 -> Sparkasse Brasilien | F1: ='Übersicht Banken u. Kassen'!C5 -> DE 76 205700 02 003366 454
B2: ='Gesamt-Einnahmen und Ausgaben'!A2 -> Einnahmen- und Ausgaben für das Haushaltsjahr | E2: ='Gesamt-Einnahmen und Ausgaben'!D2 -> 2022 | K2: ='Bankkonto-Wehr'!K2:L2 -> Planung 2022
B3: ='Gesamt-Einnahmen und Ausgaben'!A3 -> Nr. | C3: ='Gesamt-Einnahmen und Ausgaben'!B3 -> Bezeichnung | D3: ='Gesamt-Einnahmen und Ausgaben'!C3 -> Einnahmen | E3: ='Gesamt-Einnahmen und Ausgaben'!D3 -> Erläuterungen | F3: ='Gesamt-Einnahmen und Ausgaben'!E3 -> Nr. | G3: ='Gesamt-Einnahmen und Ausgaben'!F3 -> Bezeichnung | H3: ='Gesamt-Einnahmen und Ausgaben'!G3 -> Ausgaben | I3: ='Gesamt-Einnahmen und Ausgaben'!H3 -> Erläuterungen | K3: Einnahmen | L3: Ausgaben
B4: 1 | C4: 2 | D4: 3 | E4: 4 | F4: 5 | G4: 6 | H4: 7 | I4: 8
B5: ='Gesamt-Einnahmen und Ausgaben'!A5 -> 0 | C5: ='Gesamt-Einnahmen und Ausgaben'!B5 -> Zuwendungen von Mitgliedern | D5: =SUMIF(F$20:F$169,B5,G$20:G$169) -> 10002 | F5: ='Gesamt-Einnahmen und Ausgaben'!E5 -> 8 | G5: ='Gesamt-Einnahmen und Ausgaben'!F5 -> Ausgaben für Kameradschaftspflege und Versammlungen | H5: =SUMIF(F$20:F$169,F5,H$20:H$169) -> 10001 | K5: 1000 | L5: 2000
B6: ='Gesamt-Einnahmen und Ausgaben'!A6 -> 1 | C6: ='Gesamt-Einnahmen und Ausgaben'!B6 -> Zuwendungen von Dritten | D6: 10002 | F6: ='Gesamt-Einnahmen und Ausgaben'!E6 -> 9 | G6: ='Gesamt-Einnahmen und Ausgaben'!F6 -> Ausgaben für Ehrungen, Geschenke und ähnliche Anlässe | H6: 10001 | K6: 1000 | L6: 1000
B7: ='Gesamt-Einnahmen und Ausgaben'!A7 -> 2 | C7: Einnahmen aus Veranstaltungen und Auftritten des Musikzugs | D7: 10002 | F7: ='Gesamt-Einnahmen und Ausgaben'!E7 -> 10 | G7: ='Gesamt-Einnahmen und Ausgaben'!F7 -> Ausgaben für Veranstaltungen | H7: 10001 | K7: 1000 | L7: 1000
B8: ='Gesamt-Einnahmen und Ausgaben'!A8 -> 3 | C8: ='Gesamt-Einnahmen und Ausgaben'!B8 -> Veräußerung von Vermögens-gegenständen im Einzelwert ab 500 € | D8: 10002 | E8: ='Gesamt-Einnahmen und Ausgaben'!D8 -> Einnahmen aus Abgängen von der Bestandsliste | F8: ='Gesamt-Einnahmen und Ausgaben'!E8 -> 11 | G8: ='Gesamt-Einnahmen und Ausgaben'!F8 -> Erwerb von Vermögensgegenständen im Einzelwert ab 500 € | H8: 10001 | I8: ='Gesamt-Einnahmen und Ausgaben'!H8 -> Ausgaben für Zugänge zur Bestandsliste | K8: 1000 | L8: 1000
B9: ='Gesamt-Einnahmen und Ausgaben'!A9 -> 4 | C9: ='Gesamt-Einnahmen und Ausgaben'!B9 -> Erstattung von Auslagen durch Gemeinde und Dritte | D9: 10002 | F9: ='Gesamt-Einnahmen und Ausgaben'!E9 -> 12 | G9: ='Gesamt-Einnahmen und Ausgaben'!F9 -> Auslagen für Gemeinde und Dritte | H9: 10001 | K9: 1000 | L9: 1000
B10: ='Gesamt-Einnahmen und Ausgaben'!A10 -> 5 | C10: ='Gesamt-Einnahmen und Ausgaben'!B10 -> Sonstige Einnahmen | D10: 10002 | F10: ='Gesamt-Einnahmen und Ausgaben'!E10 -> 13 | G10: ='Gesamt-Einnahmen und Ausgaben'!F10 -> Sonstige Ausgaben | H10: 10001 | K10: 1000 | L10: 1000
B11: ='Gesamt-Einnahmen und Ausgaben'!A11 -> 6 | C11: ='Gesamt-Einnahmen und Ausgaben'!B11 -> Einzahlungen der Gemeinde | D11: 10002 | F11: ='Gesamt-Einnahmen und Ausgaben'!E11 -> 14 | G11: ='Gesamt-Einnahmen und Ausgaben'!F11 -> Auszahlungen an die Gemeinde | H11: 10001 | K11: 1000 | L11: 1000
B12: ='Gesamt-Einnahmen und Ausgaben'!A12 -> 7 | C12: ='Gesamt-Einnahmen und Ausgaben'!B12 -> Entnahme aus der Rücklage | D12: =IF((H5+H6+H7+H8+H9+H10+H11)>(D5+D6+D7+D8+D9+D10+D11),H5+H6+H7+H8+H9+H10+H11-D5-D6-D7-D8-D9-D10-D11,0) -> 0 | E12: Automatische Buchung | F12: ='Gesamt-Einnahmen und Ausgaben'!E12 -> 15 | G12: ='Gesamt-Einnahmen und Ausgaben'!F12 -> Zuführung zur Rücklage | H12: =IF((H5+H6+H7+H8+H9+H10+H11)<(D5+D6+D7+D8+D9+D10+D11),D5+D6+D7+D8+D9+D10+D11-H5-H6-H7-H8-H9-H10-H11,0) -> 7 | I12: Automatische Buchung
B13: ='Gesamt-Einnahmen und Ausgaben'!A13 -> 0-7 | C13: ='Gesamt-Einnahmen und Ausgaben'!B13 -> Gesamteinnahmen | D13: =SUM(D5:D12) -> 70014 | F13: ='Gesamt-Einnahmen und Ausgaben'!E13 -> 8-15 | G13: ='Gesamt-Einnahmen und Ausgaben'!F13 -> Gesamtausgaben | H13: =SUM(H5:H12) -> 70014 | K13: =SUM(K5:K12) -> 7000 | L13: =SUM(L5:L12) -> 8000
B14: © Ludwig Fink; Landesfeuerwehrverband Schleswig-Holstein | G14: ='Gesamt-Einnahmen und Ausgaben'!F14 -> Die Ausgaben werden für gegenseitig deckungsfähig erklärt.
B15: U | C15: Umbuchungen zw. Konten und Kassen | D15: =SUMIF(F$20:F$170,B15,G$20:G$170) -> 1000 | F15: U | G15: Umbuchungen zw. Konten und Kassen | H15: =SUMIF(F$20:F$170,F15,H$20:H$170) -> 1000
A16: Zeilen: | B16: =A169 -> 150 | D16: Bitte Kommentar beachten | G16: ='Übersicht Banken u. Kassen'!D2 -> Stand am 1. Januar gemäß Kontoauszug/ Kassenaufnahmeprotokoll | H16: ='Übersicht Banken u. Kassen'!E2 -> Aktueller Stand gemäß Buchführung
B17: Sprung zu: | C17: Bedienungshinweise!A1 | G17: ='Übersicht Banken u. Kassen'!D5 -> 1 | I17: =G17+G171 -> 8 | J17: =IF(I17<0,"Fehler! Kann nicht negativ werden","OK") -> OK
A19: Beleg-Nr. | B19: Datum | C19: Bezeichnung | F19: Kennziffer | G19: Einnahme/Einzahlung | H19: Ausgabe/Auszahlung | J19: Bemerkungen
A20: 1 | F20: 0 | G20: 10002
A21: =A20+1 -> 2 | C21: Bitte vor Gebrauch Kennziffern und Beträge löschen | F21: 1 | G21: 10002
A22: =A21+1 -> 3 | F22: 2 | G22: 10002
A23: 4 | F23: 3 | G23: 10002
A24: 5 | F24: 4 | G24: 10002
A25: 6 | F25: 5 | G25: 10002
A26: 7 | F26: 6 | G26: 10002
A27: 8 | F27: 8 | H27: 10001
A28: 9 | F28: 9 | H28: 10001
A29: 10 | F29: 10 | H29: 10001
A30: 11 | F30: 11 | H30: 10001
A31: 12 | F31: 12 | H31: 10001
A32: 13 | F32: 13 | H32: 10001
A33: 14 | F33: 14 | H33: 10001
A34: 15 | F34: u | H34: 1000
A35: 16 | F35: u | G35: 500
A36: 17 | F36: u | G36: 500
A37: 18
A38: 19
A39: 20
A40: 21
A41: 22
A42: 23
A43: 24
A44: 25
A45: 26
A46: 27
A47: 28
A48: 29
A49: 30
A50: 31
A51: 32
A52: 33
A53: 34
A54: 35
A55: 36
A56: 37
A57: 38
A58: 39
A59: 40
A60: 41
A61: 42
A62: 43
A63: 44
A64: 45
A65: 46
A66: 47
A67: 48
A68: 49
A69: 50
A70: 51
A71: 52
A72: 53
A73: 54
A74: 55
A75: 56
A76: 57
A77: 58
A78: 59
A79: 60
A80: 61
A81: 62
A82: 63
A83: 64
A84: 65
A85: 66
A86: 67
A87: 68
A88: 69
A89: 70
A90: 71
A91: 72
A92: 73
A93: 74
A94: 75
A95: 76
A96: 77
A97: 78
A98: 79
A99: 80
A100: 81
A101: 82
A102: 83
A103: 84
A104: 85
A105: 86
A106: 87
A107: 88
A108: 89
A109: 90
A110: 91
A111: 92
A112: 93
A113: 94
A114: 95
A115: 96
A116: 97
A117: 98
A118: 99
A119: 100
A120: 101
A121: 102
A122: 103
A123: 104
A124: 105
A125: 106
A126: 107
A127: 108
A128: 109
A129: 110
A130: 111
A131: 112
A132: 113
A133: 114
A134: 115
A135: 116
A136: =A135+1 -> 117
A137: 118
A138: 119
A139: 120
A140: 121
A141: 122
A142: 123
A143: 124
A144: 125
A145: 126
A146: 127
A147: 128
A148: 129
A149: 130
A150: 131
A151: 132
A152: 133
A153: 134
A154: 135
A155: 136
A156: 137
A157: 138
A158: 139
A159: 140
A160: 141
A161: 142
A162: 143
A163: 144
A164: 145
A165: 146
A166: 147
A167: 148
A168: 149
A169: 150
F170: Summe: | G170: =ROUND(SUM(G20:G169),2) -> 71014 | H170: =ROUND(SUM(H20:H169),2) -> 71007
F171: aktuelle Veränderung | G171: =G170-H170 -> 7
F173: Kontrolle | G173: =ROUND(SUM(D5:D11)-G170+D15,2) -> 0 | H173: =ROUND(SUM(H5:H11)-H170+H15,2) -> 0
F174: muss Null ergeben | G174: =IF(G173=0,"OK","Fehler") -> OK | H174: =IF(H173=0,"OK","Fehler") -> OK

Sheet Kasse-Musikzug
B1: Kasse 3 | C1: Musikzug
B2: ='Gesamt-Einnahmen und Ausgaben'!A2 -> Einnahmen- und Ausgaben für das Haushaltsjahr | E2: ='Gesamt-Einnahmen und Ausgaben'!D2 -> 2022 | K2: ='Bankkonto-Wehr'!K2:L2 -> Planung 2022
B3: ='Gesamt-Einnahmen und Ausgaben'!A3 -> Nr. | C3: ='Gesamt-Einnahmen und Ausgaben'!B3 -> Bezeichnung | D3: ='Gesamt-Einnahmen und Ausgaben'!C3 -> Einnahmen | E3: ='Gesamt-Einnahmen und Ausgaben'!D3 -> Erläuterungen | F3: ='Gesamt-Einnahmen und Ausgaben'!E3 -> Nr. | G3: ='Gesamt-Einnahmen und Ausgaben'!F3 -> Bezeichnung | H3: ='Gesamt-Einnahmen und Ausgaben'!G3 -> Ausgaben | I3: ='Gesamt-Einnahmen und Ausgaben'!H3 -> Erläuterungen | K3: Einnahmen | L3: Ausgaben
B4: 1 | C4: 2 | D4: 3 | E4: 4 | F4: 5 | G4: 6 | H4: 7 | I4: 8
B5: ='Gesamt-Einnahmen und Ausgaben'!A5 -> 0 | C5: ='Gesamt-Einnahmen und Ausgaben'!B5 -> Zuwendungen von Mitgliedern | D5: =SUMIF(F$20:F$169,B5,G$20:G$169) -> 10002 | F5: ='Gesamt-Einnahmen und Ausgaben'!E5 -> 8 | G5: ='Gesamt-Einnahmen und Ausgaben'!F5 -> Ausgaben für Kameradschaftspflege und Versammlungen | H5: =SUMIF(F$20:F$169,F5,H$20:H$169) -> 10001 | K5: 1000 | L5: 2000
B6: ='Gesamt-Einnahmen und Ausgaben'!A6 -> 1 | C6: ='Gesamt-Einnahmen und Ausgaben'!B6 -> Zuwendungen von Dritten | D6: 10002 | F6: ='Gesamt-Einnahmen und Ausgaben'!E6 -> 9 | G6: ='Gesamt-Einnahmen und Ausgaben'!F6 -> Ausgaben für Ehrungen, Geschenke und ähnliche Anlässe | H6: 10001 | K6: 1000 | L6: 1000
B7: ='Gesamt-Einnahmen und Ausgaben'!A7 -> 2 | C7: Einnahmen aus Veranstaltungen und Auftritten des Musikzugs | D7: 10002 | F7: ='Gesamt-Einnahmen und Ausgaben'!E7 -> 10 | G7: ='Gesamt-Einnahmen und Ausgaben'!F7 -> Ausgaben für Veranstaltungen | H7: 10001 | K7: 1000 | L7: 1000
B8: ='Gesamt-Einnahmen und Ausgaben'!A8 -> 3 | C8: ='Gesamt-Einnahmen und Ausgaben'!B8 -> Veräußerung von Vermögens-gegenständen im Einzelwert ab 500 € | D8: 10002 | E8: ='Gesamt-Einnahmen und Ausgaben'!D8 -> Einnahmen aus Abgängen von der Bestandsliste | F8: ='Gesamt-Einnahmen und Ausgaben'!E8 -> 11 | G8: ='Gesamt-Einnahmen und Ausgaben'!F8 -> Erwerb von Vermögensgegenständen im Einzelwert ab 500 € | H8: 10001 | I8: ='Gesamt-Einnahmen und Ausgaben'!H8 -> Ausgaben für Zugänge zur Bestandsliste | K8: 1000 | L8: 1000
B9: ='Gesamt-Einnahmen und Ausgaben'!A9 -> 4 | C9: ='Gesamt-Einnahmen und Ausgaben'!B9 -> Erstattung von Auslagen durch Gemeinde und Dritte | D9: 10002 | F9: ='Gesamt-Einnahmen und Ausgaben'!E9 -> 12 | G9: ='Gesamt-Einnahmen und Ausgaben'!F9 -> Auslagen für Gemeinde und Dritte | H9: 10001 | K9: 1000 | L9: 1000
B10: ='Gesamt-Einnahmen und Ausgaben'!A10 -> 5 | C10: ='Gesamt-Einnahmen und Ausgaben'!B10 -> Sonstige Einnahmen | D10: 10002 | F10: ='Gesamt-Einnahmen und Ausgaben'!E10 -> 13 | G10: ='Gesamt-Einnahmen und Ausgaben'!F10 -> Sonstige Ausgaben | H10: 10001 | K10: 1000 | L10: 1000
B11: ='Gesamt-Einnahmen und Ausgaben'!A11 -> 6 | C11: ='Gesamt-Einnahmen und Ausgaben'!B11 -> Einzahlungen der Gemeinde | D11: 10002 | F11: ='Gesamt-Einnahmen und Ausgaben'!E11 -> 14 | G11: ='Gesamt-Einnahmen und Ausgaben'!F11 -> Auszahlungen an die Gemeinde | H11: 10001 | K11: 1000 | L11: 1000
B12: ='Gesamt-Einnahmen und Ausgaben'!A12 -> 7 | C12: ='Gesamt-Einnahmen und Ausgaben'!B12 -> Entnahme aus der Rücklage | D12: =IF((H5+H6+H7+H8+H9+H10+H11)>(D5+D6+D7+D8+D9+D10+D11),H5+H6+H7+H8+H9+H10+H11-D5-D6-D7-D8-D9-D10-D11,0) -> 0 | E12: Automatische Buchung | F12: ='Gesamt-Einnahmen und Ausgaben'!E12 -> 15 | G12: ='Gesamt-Einnahmen und Ausgaben'!F12 -> Zuführung zur Rücklage | H12: =IF((H5+H6+H7+H8+H9+H10+H11)<(D5+D6+D7+D8+D9+D10+D11),D5+D6+D7+D8+D9+D10+D11-H5-H6-H7-H8-H9-H10-H11,0) -> 7 | I12: Automatische Buchung
B13: ='Gesamt-Einnahmen und Ausgaben'!A13 -> 0-7 | C13: ='Gesamt-Einnahmen und Ausgaben'!B13 -> Gesamteinnahmen | D13: =SUM(D5:D12) -> 70014 | F13: ='Gesamt-Einnahmen und Ausgaben'!E13 -> 8-15 | G13: ='Gesamt-Einnahmen und Ausgaben'!F13 -> Gesamtausgaben | H13: =SUM(H5:H12) -> 70014 | K13: =SUM(K5:K12) -> 7000 | L13: =SUM(L5:L12) -> 8000
B14: © Ludwig Fink; Landesfeuerwehrverband Schleswig-Holstein | G14: ='Gesamt-Einnahmen und Ausgaben'!F14 -> Die Ausgaben werden für gegenseitig deckungsfähig erklärt.
B15: U | C15: Umbuchungen zw. Konten und Kassen | D15: =SUMIF(F$20:F$169,B15,G$20:G$169) -> 1000 | F15: U | G15: Umbuchungen zw. Konten und Kassen | H15: =SUMIF(F$20:F$169,F15,H$20:H$169) -> 1000
A16: Zeilen: | B16: =A169 -> 150 | D16: Bitte Kommentar beachten | G16: ='Übersicht Banken u. Kassen'!D2 -> Stand am 1. Januar gemäß Kontoauszug/ Kassenaufnahmeprotokoll | H16: ='Übersicht Banken u. Kassen'!E2 -> Aktueller Stand gemäß Buchführung
B17: Sprung zu: | C17: Bedienungshinweise!A1 | G17: ='Übersicht Banken u. Kassen'!D9 -> 1 | I17: =G17+G171 -> 8 | J17: =IF(I17<0,"Fehler! Kann nicht negativ werden","OK") -> OK
A19: Beleg-Nr. | B19: Datum | C19: Bezeichnung | F19: Kennziffer | G19: Einnahme/Einzahlung | H19: Ausgabe/Auszahlung | J19: Bemerkungen
A20: 1 | F20: 0 | G20: 10002
A21: =A20+1 -> 2 | C21: Bitte vor Gebrauch Kennziffern und Beträge löschen | F21: 1 | G21: 10002
A22: =A21+1 -> 3 | F22: 2 | G22: 10002
A23: 4 | F23: 3 | G23: 10002
A24: 5 | F24: 4 | G24: 10002
A25: 6 | F25: 5 | G25: 10002
A26: 7 | F26: 6 | G26: 10002
A27: 8 | F27: 8 | H27: 10001
A28: 9 | F28: 9 | H28: 10001
A29: 10 | F29: 10 | H29: 10001
A30: 11 | F30: 11 | H30: 10001
A31: 12 | F31: 12 | H31: 10001
A32: 13 | F32: 13 | H32: 10001
A33: 14 | F33: 14 | H33: 10001
A34: 15 | F34: u | H34: 1000
A35: 16 | F35: u | G35: 500
A36: 17 | F36: u | G36: 500
A37: 18
A38: 19
A39: 20
A40: 21
A41: 22
A42: 23
A43: 24
A44: 25
A45: 26
A46: 27
A47: 28
A48: 29
A49: 30
A50: 31
A51: 32
A52: 33
A53: 34
A54: 35
A55: 36
A56: 37
A57: 38
A58: 39
A59: 40
A60: 41
A61: 42
A62: 43
A63: 44
A64: 45
A65: 46
A66: 47
A67: 48
A68: 49
A69: 50
A70: 51
A71: 52
A72: 53
A73: 54
A74: 55
A75: 56
A76: 57
A77: 58
A78: 59
A79: 60
A80: 61
A81: 62
A82: 63
A83: 64
A84: 65
A85: 66
A86: =A85+1 -> 67
A87: 68
A88: 69
A89: 70
A90: 71
A91: 72
A92: 73
A93: 74
A94: 75
A95: 76
A96: 77
A97: 78
A98: 79
A99: 80
A100: 81
A101: 82
A102: 83
A103: 84
A104: 85
A105: 86
A106: 87
A107: 88
A108: 89
A109: 90
A110: 91
A111: 92
A112: 93
A113: 94
A114: 95
A115: 96
A116: 97
A117: 98
A118: 99
A119: 100
A120: 101
A121: 102
A122: 103
A123: 104
A124: 105
A125: 106
A126: 107
A127: 108
A128: 109
A129: 110
A130: 111
A131: 112
A132: 113
A133: 114
A134: 115
A135: 116
A136: 117
A137: 118
A138: 119
A139: 120
A140: 121
A141: 122
A142: 123
A143: 124
A144: 125
A145: 126
A146: 127
A147: 128
A148: 129
A149: 130
A150: =A149+1 -> 131
A151: 132
A152: 133
A153: 134
A154: 135
A155: 136
A156: 137
A157: 138
A158: 139
A159: 140
A160: 141
A161: 142
A162: 143
A163: 144
A164: 145
A165: 146
A166: 147
A167: 148
A168: 149
A169: 150
F170: Summe: | G170: =ROUND(SUM(G20:G169),2) -> 71014 | H170: =ROUND(SUM(H20:H169),2) -> 71007
F171: aktuelle Veränderung | G171: =G170-H170 -> 7
F173: Kontrolle | G173: =ROUND(SUM(D5:D11)-G170+D15,2) -> 0 | H173: =ROUND(SUM(H5:H11)-H170+H15,2) -> 0
F174: muss Null ergeben | G174: =IF(G173=0,"OK","Fehler") -> OK | H174: =IF(H173=0,"OK","Fehler") -> OK

Sheet Kasse 4
B1: Kasse 4 | C1: Bezeichnung hier eintragen
B2: ='Gesamt-Einnahmen und Ausgaben'!A2 -> Einnahmen- und Ausgaben für das Haushaltsjahr | E2: ='Gesamt-Einnahmen und Ausgaben'!D2 -> 2022 | K2: ='Bankkonto-Wehr'!K2:L2 -> Planung 2022
B3: ='Gesamt-Einnahmen und Ausgaben'!A3 -> Nr. | C3: ='Gesamt-Einnahmen und Ausgaben'!B3 -> Bezeichnung | D3: ='Gesamt-Einnahmen und Ausgaben'!C3 -> Einnahmen | E3: ='Gesamt-Einnahmen und Ausgaben'!D3 -> Erläuterungen | F3: ='Gesamt-Einnahmen und Ausgaben'!E3 -> Nr. | G3: ='Gesamt-Einnahmen und Ausgaben'!F3 -> Bezeichnung | H3: ='Gesamt-Einnahmen und Ausgaben'!G3 -> Ausgaben | I3: ='Gesamt-Einnahmen und Ausgaben'!H3 -> Erläuterungen | K3: Einnahmen | L3: Ausgaben
B4: 1 | C4: 2 | D4: 3 | E4: 4 | F4: 5 | G4: 6 | H4: 7 | I4: 8
B5: ='Gesamt-Einnahmen und Ausgaben'!A5 -> 0 | C5: ='Gesamt-Einnahmen und Ausgaben'!B5 -> Zuwendungen von Mitgliedern | D5: =SUMIF(F$20:F$169,B5,G$20:G$169) -> 10002 | F5: ='Gesamt-Einnahmen und Ausgaben'!E5 -> 8 | G5: ='Gesamt-Einnahmen und Ausgaben'!F5 -> Ausgaben für Kameradschaftspflege und Versammlungen | H5: =SUMIF(F$20:F$169,F5,H$20:H$169) -> 10001 | K5: 1000 | L5: 2000
B6: ='Gesamt-Einnahmen und Ausgaben'!A6 -> 1 | C6: ='Gesamt-Einnahmen und Ausgaben'!B6 -> Zuwendungen von Dritten | D6: 10002 | F6: ='Gesamt-Einnahmen und Ausgaben'!E6 -> 9 | G6: ='Gesamt-Einnahmen und Ausgaben'!F6 -> Ausgaben für Ehrungen, Geschenke und ähnliche Anlässe | H6: 10001 | K6: 1000 | L6: 1000
B7: ='Gesamt-Einnahmen und Ausgaben'!A7 -> 2 | C7: ='Gesamt-Einnahmen und Ausgaben'!B7 -> Einnahmen aus Veranstaltungen | D7: 10002 | F7: ='Gesamt-Einnahmen und Ausgaben'!E7 -> 10 | G7: ='Gesamt-Einnahmen und Ausgaben'!F7 -> Ausgaben für Veranstaltungen | H7: 10001 | K7: 1000 | L7: 1000
B8: ='Gesamt-Einnahmen und Ausgaben'!A8 -> 3 | C8: ='Gesamt-Einnahmen und Ausgaben'!B8 -> Veräußerung von Vermögens-gegenständen im Einzelwert ab 500 € | D8: 10002 | E8: ='Gesamt-Einnahmen und Ausgaben'!D8 -> Einnahmen aus Abgängen von der Bestandsliste | F8: ='Gesamt-Einnahmen und Ausgaben'!E8 -> 11 | G8: ='Gesamt-Einnahmen und Ausgaben'!F8 -> Erwerb von Vermögensgegenständen im Einzelwert ab 500 € | H8: 10001 | I8: ='Gesamt-Einnahmen und Ausgaben'!H8 -> Ausgaben für Zugänge zur Bestandsliste | K8: 1000 | L8: 1000
B9: ='Gesamt-Einnahmen und Ausgaben'!A9 -> 4 | C9: ='Gesamt-Einnahmen und Ausgaben'!B9 -> Erstattung von Auslagen durch Gemeinde und Dritte | D9: 10002 | F9: ='Gesamt-Einnahmen und Ausgaben'!E9 -> 12 | G9: ='Gesamt-Einnahmen und Ausgaben'!F9 -> Auslagen für Gemeinde und Dritte | H9: 10001 | K9: 1000 | L9: 1000
B10: ='Gesamt-Einnahmen und Ausgaben'!A10 -> 5 | C10: ='Gesamt-Einnahmen und Ausgaben'!B10 -> Sonstige Einnahmen | D10: 10002 | F10: ='Gesamt-Einnahmen und Ausgaben'!E10 -> 13 | G10: ='Gesamt-Einnahmen und Ausgaben'!F10 -> Sonstige Ausgaben | H10: 10001 | K10: 1000 | L10: 1000
B11: ='Gesamt-Einnahmen und Ausgaben'!A11 -> 6 | C11: ='Gesamt-Einnahmen und Ausgaben'!B11 -> Einzahlungen der Gemeinde | D11: 10002 | F11: ='Gesamt-Einnahmen und Ausgaben'!E11 -> 14 | G11: ='Gesamt-Einnahmen und Ausgaben'!F11 -> Auszahlungen an die Gemeinde | H11: 10001 | K11: 1000 | L11: 1000
B12: ='Gesamt-Einnahmen und Ausgaben'!A12 -> 7 | C12: ='Gesamt-Einnahmen und Ausgaben'!B12 -> Entnahme aus der Rücklage | D12: =IF((H5+H6+H7+H8+H9+H10+H11)>(D5+D6+D7+D8+D9+D10+D11),H5+H6+H7+H8+H9+H10+H11-D5-D6-D7-D8-D9-D10-D11,0) -> 0 | E12: Automatische Buchung | F12: ='Gesamt-Einnahmen und Ausgaben'!E12 -> 15 | G12: ='Gesamt-Einnahmen und Ausgaben'!F12 -> Zuführung zur Rücklage | H12: =IF((H5+H6+H7+H8+H9+H10+H11)<(D5+D6+D7+D8+D9+D10+D11),D5+D6+D7+D8+D9+D10+D11-H5-H6-H7-H8-H9-H10-H11,0) -> 7 | I12: Automatische Buchung
B13: ='Gesamt-Einnahmen und Ausgaben'!A13 -> 0-7 | C13: ='Gesamt-Einnahmen und Ausgaben'!B13 -> Gesamteinnahmen | D13: =SUM(D5:D12) -> 70014 | F13: ='Gesamt-Einnahmen und Ausgaben'!E13 -> 8-15 | G13: ='Gesamt-Einnahmen und Ausgaben'!F13 -> Gesamtausgaben | H13: =SUM(H5:H12) -> 70014 | K13: =SUM(K5:K12) -> 7000 | L13: =SUM(L5:L12) -> 8000
B14: © Ludwig Fink; Landesfeuerwehrverband Schleswig-Holstein | G14: ='Gesamt-Einnahmen und Ausgaben'!F14 -> Die Ausgaben werden für gegenseitig deckungsfähig erklärt.
B15: U | C15: Umbuchungen zw. Konten und Kassen | D15: =SUMIF(F$20:F$169,B15,G$20:G$169) -> 1000 | F15: U | G15: Umbuchungen zw. Konten und Kassen | H15: =SUMIF(F$20:F$169,F15,H$20:H$169) -> 1000
A16: Zeilen: | B16: =A169 -> 150 | D16: Bitte Kommentar beachten | G16: ='Übersicht Banken u. Kassen'!D2 -> Stand am 1. Januar gemäß Kontoauszug/ Kassenaufnahmeprotokoll | H16: ='Übersicht Banken u. Kassen'!E2 -> Aktueller Stand gemäß Buchführung
B17: Sprung zu: | C17: Bedienungshinweise!A1 | G17: ='Übersicht Banken u. Kassen'!D10 -> 1 | I17: =G17+G171 -> 8 | J17: =IF(I17<0,"Fehler! Kann nicht negativ werden","OK") -> OK
A19: Beleg-Nr. | B19: Datum | C19: Bezeichnung | F19: Kennziffer | G19: Einnahme/Einzahlung | H19: Ausgabe/Auszahlung | J19: Bemerkungen
A20: 1 | F20: 0 | G20: 10002
A21: =A20+1 -> 2 | C21: Bitte vor Gebrauch Kennziffern und Beträge löschen | F21: 1 | G21: 10002
A22: =A21+1 -> 3 | F22: 2 | G22: 10002
A23: 4 | F23: 3 | G23: 10002
A24: 5 | F24: 4 | G24: 10002
A25: 6 | F25: 5 | G25: 10002
A26: 7 | F26: 6 | G26: 10002
A27: 8 | F27: 8 | H27: 10001
A28: 9 | F28: 9 | H28: 10001
A29: 10 | F29: 10 | H29: 10001
A30: 11 | F30: 11 | H30: 10001
A31: 12 | F31: 12 | H31: 10001
A32: 13 | F32: 13 | H32: 10001
A33: 14 | F33: 14 | H33: 10001
A34: 15 | F34: u | H34: 1000
A35: 16 | F35: u | G35: 500
A36: 17 | F36: u | G36: 500
A37: 18
A38: 19
A39: 20
A40: 21
A41: 22
A42: 23
A43: 24
A44: 25
A45: 26
A46: 27
A47: 28
A48: 29
A49: 30
A50: 31
A51: 32
A52: 33
A53: 34
A54: 35
A55: 36
A56: 37
A57: 38
A58: 39
A59: 40
A60: 41
A61: 42
A62: 43
A63: 44
A64: 45
A65: 46
A66: 47
A67: 48
A68: 49
A69: 50
A70: 51
A71: 52
A72: 53
A73: 54
A74: 55
A75: 56
A76: 57
A77: 58
A78: 59
A79: 60
A80: 61
A81: 62
A82: 63
A83: 64
A84: 65
A85: 66
A86: =A85+1 -> 67
A87: 68
A88: 69
A89: 70
A90: 71
A91: 72
A92: 73
A93: 74
A94: 75
A95: 76
A96: 77
A97: 78
A98: 79
A99: 80
A100: 81
A101: 82
A102: 83
A103: 84
A104: 85
A105: 86
A106: 87
A107: 88
A108: 89
A109: 90
A110: 91
A111: 92
A112: 93
A113: 94
A114: 95
A115: 96
A116: 97
A117: 98
A118: 99
A119: 100
A120: 101
A121: 102
A122: 103
A123: 104
A124: 105
A125: 106
A126: 107
A127: 108
A128: 109
A129: 110
A130: 111
A131: 112
A132: 113
A133: 114
A134: 115
A135: 116
A136: 117
A137: 118
A138: 119
A139: 120
A140: 121
A141: 122
A142: 123
A143: 124
A144: 125
A145: 126
A146: 127
A147: 128
A148: 129
A149: 130
A150: =A149+1 -> 131
A151: 132
A152: 133
A153: 134
A154: 135
A155: 136
A156: 137
A157: 138
A158: 139
A159: 140
A160: 141
A161: 142
A162: 143
A163: 144
A164: 145
A165: 146
A166: 147
A167: 148
A168: 149
A169: 150
F170: Summe: | G170: =ROUND(SUM(G20:G169),2) -> 71014 | H170: =ROUND(SUM(H20:H169),2) -> 71007
F171: aktuelle Veränderung | G171: =G170-H170 -> 7
F173: Kontrolle | G173: =ROUND(SUM(D5:D11)-G170+D15,2) -> 0 | H173: =ROUND(SUM(H5:H11)-H170+H15,2) -> 0
F174: muss Null ergeben | G174: =IF(G173=0,"OK","Fehler") -> OK | H174: =IF(H173=0,"OK","Fehler") -> OK

Sheet Kasse 5
B1: Kasse 5 | C1: Bezeichnung hier eintragen
B2: ='Gesamt-Einnahmen und Ausgaben'!A2 -> Einnahmen- und Ausgaben für das Haushaltsjahr | E2: ='Gesamt-Einnahmen und Ausgaben'!D2 -> 2022 | K2: ='Bankkonto-Wehr'!K2:L2 -> Planung 2022
B3: ='Gesamt-Einnahmen und Ausgaben'!A3 -> Nr. | C3: ='Gesamt-Einnahmen und Ausgaben'!B3 -> Bezeichnung | D3: ='Gesamt-Einnahmen und Ausgaben'!C3 -> Einnahmen | E3: ='Gesamt-Einnahmen und Ausgaben'!D3 -> Erläuterungen | F3: ='Gesamt-Einnahmen und Ausgaben'!E3 -> Nr. | G3: ='Gesamt-Einnahmen und Ausgaben'!F3 -> Bezeichnung | H3: ='Gesamt-Einnahmen und Ausgaben'!G3 -> Ausgaben | I3: ='Gesamt-Einnahmen und Ausgaben'!H3 -> Erläuterungen | K3: Einnahmen | L3: Ausgaben
B4: 1 | C4: 2 | D4: 3 | E4: 4 | F4: 5 | G4: 6 | H4: 7 | I4: 8
B5: ='Gesamt-Einnahmen und Ausgaben'!A5 -> 0 | C5: ='Gesamt-Einnahmen und Ausgaben'!B5 -> Zuwendungen von Mitgliedern | D5: =SUMIF(F$20:F$169,B5,G$20:G$169) -> 2 | F5: ='Gesamt-Einnahmen und Ausgaben'!E5 -> 8 | G5: ='Gesamt-Einnahmen und Ausgaben'!F5 -> Ausgaben für Kameradschaftspflege und Versammlungen | H5: =SUMIF(F$20:F$169,F5,H$20:H$169) -> 8 | K5: 1000 | L5: 2000
B6: ='Gesamt-Einnahmen und Ausgaben'!A6 -> 1 | C6: ='Gesamt-Einnahmen und Ausgaben'!B6 -> Zuwendungen von Dritten | D6: 2 | F6: ='Gesamt-Einnahmen und Ausgaben'!E6 -> 9 | G6: ='Gesamt-Einnahmen und Ausgaben'!F6 -> Ausgaben für Ehrungen, Geschenke und ähnliche Anlässe | H6: 1 | K6: 1000 | L6: 1000
B7: ='Gesamt-Einnahmen und Ausgaben'!A7 -> 2 | C7: ='Gesamt-Einnahmen und Ausgaben'!B7 -> Einnahmen aus Veranstaltungen | D7: 2 | F7: ='Gesamt-Einnahmen und Ausgaben'!E7 -> 10 | G7: ='Gesamt-Einnahmen und Ausgaben'!F7 -> Ausgaben für Veranstaltungen | H7: 1 | K7: 1000 | L7: 1000
B8: ='Gesamt-Einnahmen und Ausgaben'!A8 -> 3 | C8: ='Gesamt-Einnahmen und Ausgaben'!B8 -> Veräußerung von Vermögens-gegenständen im Einzelwert ab 500 € | D8: 2 | E8: ='Gesamt-Einnahmen und Ausgaben'!D8 -> Einnahmen aus Abgängen von der Bestandsliste | F8: ='Gesamt-Einnahmen und Ausgaben'!E8 -> 11 | G8: ='Gesamt-Einnahmen und Ausgaben'!F8 -> Erwerb von Vermögensgegenständen im Einzelwert ab 500 € | H8: 1 | I8: ='Gesamt-Einnahmen und Ausgaben'!H8 -> Ausgaben für Zugänge zur Bestandsliste | K8: 1000 | L8: 1000
B9: ='Gesamt-Einnahmen und Ausgaben'!A9 -> 4 | C9: ='Gesamt-Einnahmen und Ausgaben'!B9 -> Erstattung von Auslagen durch Gemeinde und Dritte | D9: 2 | F9: ='Gesamt-Einnahmen und Ausgaben'!E9 -> 12 | G9: ='Gesamt-Einnahmen und Ausgaben'!F9 -> Auslagen für Gemeinde und Dritte | H9: 1 | K9: 1000 | L9: 1000
B10: ='Gesamt-Einnahmen und Ausgaben'!A10 -> 5 | C10: ='Gesamt-Einnahmen und Ausgaben'!B10 -> Sonstige Einnahmen | D10: 2 | F10: ='Gesamt-Einnahmen und Ausgaben'!E10 -> 13 | G10: ='Gesamt-Einnahmen und Ausgaben'!F10 -> Sonstige Ausgaben | H10: 1 | K10: 1000 | L10: 1000
B11: ='Gesamt-Einnahmen und Ausgaben'!A11 -> 6 | C11: ='Gesamt-Einnahmen und Ausgaben'!B11 -> Einzahlungen der Gemeinde | D11: 2 | F11: ='Gesamt-Einnahmen und Ausgaben'!E11 -> 14 | G11: ='Gesamt-Einnahmen und Ausgaben'!F11 -> Auszahlungen an die Gemeinde | H11: 1 | K11: 1000 | L11: 1000
B12: ='Gesamt-Einnahmen und Ausgaben'!A12 -> 7 | C12: ='Gesamt-Einnahmen und Ausgaben'!B12 -> Entnahme aus der Rücklage | D12: =IF((H5+H6+H7+H8+H9+H10+H11)>(D5+D6+D7+D8+D9+D10+D11),H5+H6+H7+H8+H9+H10+H11-D5-D6-D7-D8-D9-D10-D11,0) -> 0 | E12: Automatische Buchung | F12: ='Gesamt-Einnahmen und Ausgaben'!E12 -> 15 | G12: ='Gesamt-Einnahmen und Ausgaben'!F12 -> Zuführung zur Rücklage | H12: =IF((H5+H6+H7+H8+H9+H10+H11)<(D5+D6+D7+D8+D9+D10+D11),D5+D6+D7+D8+D9+D10+D11-H5-H6-H7-H8-H9-H10-H11,0) -> 0 | I12: Automatische Buchung
B13: ='Gesamt-Einnahmen und Ausgaben'!A13 -> 0-7 | C13: ='Gesamt-Einnahmen und Ausgaben'!B13 -> Gesamteinnahmen | D13: =SUM(D5:D12) -> 14 | F13: ='Gesamt-Einnahmen und Ausgaben'!E13 -> 8-15 | G13: ='Gesamt-Einnahmen und Ausgaben'!F13 -> Gesamtausgaben | H13: =SUM(H5:H12) -> 14 | K13: =SUM(K5:K12) -> 7000 | L13: =SUM(L5:L12) -> 8000
B14: © Ludwig Fink; Landesfeuerwehrverband Schleswig-Holstein | G14: ='Gesamt-Einnahmen und Ausgaben'!F14 -> Die Ausgaben werden für gegenseitig deckungsfähig erklärt.
B15: U | C15: Umbuchungen zw. Konten und Kassen | D15: =SUMIF(F$20:F$169,B15,G$20:G$169) -> 0 | F15: U | G15: Umbuchungen zw. Konten und Kassen | H15: =SUMIF(F$20:F$169,F15,H$20:H$169) -> 0
A16: Zeilen: | B16: =A169 -> 150 | D16: Bitte Kommentar beachten | G16: ='Übersicht Banken u. Kassen'!D2 -> Stand am 1. Januar gemäß Kontoauszug/ Kassenaufnahmeprotokoll | H16: ='Übersicht Banken u. Kassen'!E2 -> Aktueller Stand gemäß Buchführung
B17: Sprung zu: | C17: Bedienungshinweise!A1 | G17: ='Übersicht Banken u. Kassen'!D11 -> 1 | I17: =G17+G171 -> 1 | J17: =IF(I17<0,"Fehler! Kann nicht negativ werden","OK") -> OK
A19: Beleg-Nr. | B19: Datum | C19: Bezeichnung | F19: Kennziffer | G19: Einnahme/Einzahlung | H19: Ausgabe/Auszahlung | J19: Bemerkungen
A20: 1 | F20: 0 | G20: 2
A21: =A20+1 -> 2 | F21: 1 | G21: 2
A22: =A21+1 -> 3 | F22: 2 | G22: 2
A23: 4 | F23: 3 | G23: 2
A24: 5 | F24: 4 | G24: 2
A25: 6 | F25: 5 | G25: 2
A26: 7 | F26: 6 | G26: 2
A27: 8 | F27: 8 | H27: 1
A28: 9 | F28: 9 | H28: 1
A29: 10 | F29: 10 | H29: 1
A30: 11 | F30: 11 | H30: 1
A31: 12 | F31: 12 | H31: 1
A32: 13 | F32: 13 | H32: 1
A33: 14 | F33: 14 | H33: 1
A34: 15 | F34: 8 | H34: 7
A35: 16
A36: 17
A37: 18
A38: 19
A39: 20
A40: 21
A41: 22
A42: 23
A43: 24
A44: 25
A45: 26
A46: 27
A47: 28
A48: 29
A49: 30
A50: 31
A51: 32
A52: 33
A53: 34
A54: 35
A55: 36
A56: 37
A57: 38
A58: 39
A59: 40
A60: 41
A61: 42
A62: 43
A63: 44
A64: 45
A65: 46
A66: 47
A67: 48
A68: 49
A69: 50
A70: 51
A71: 52
A72: 53
A73: 54
A74: 55
A75: 56
A76: 57
A77: 58
A78: 59
A79: 60
A80: 61
A81: 62
A82: 63
A83: 64
A84: 65
A85: 66
A86: =A85+1 -> 67
A87: 68
A88: 69
A89: 70
A90: 71
A91: 72
A92: 73
A93: 74
A94: 75
A95: 76
A96: 77
A97: 78
A98: 79
A99: 80
A100: 81
A101: 82
A102: 83
A103: 84
A104: 85
A105: 86
A106: 87
A107: 88
A108: 89
A109: 90
A110: 91
A111: 92
A112: 93
A113: 94
A114: 95
A115: 96
A116: 97
A117: 98
A118: 99
A119: 100
A120: 101
A121: 102
A122: 103
A123: 104
A124: 105
A125: 106
A126: 107
A127: 108
A128: 109
A129: 110
A130: 111
A131: 112
A132: 113
A133: 114
A134: 115
A135: 116
A136: 117
A137: 118
A138: 119
A139: 120
A140: 121
A141: 122
A142: 123
A143: 124
A144: 125
A145: 126
A146: 127
A147: 128
A148: 129
A149: 130
A150: =A149+1 -> 131
A151: 132
A152: 133
A153: 134
A154: 135
A155: 136
A156: 137
A157: 138
A158: 139
A159: 140
A160: 141
A161: 142
A162: 143
A163: 144
A164: 145
A165: 146
A166: 147
A167: 148
A168: 149
A169: 150
F170: Summe: | G170: =ROUND(SUM(G20:G169),2) -> 14 | H170: =ROUND(SUM(H20:H169),2) -> 14
F171: aktuelle Veränderung | G171: =G170-H170 -> 0
F173: Kontrolle | G173: =ROUND(SUM(D5:D11)-G170+D15,2) -> 0 | H173: =ROUND(SUM(H5:H11)-H170+H15,2) -> 0
F174: muss Null ergeben | G174: =IF(G173=0,"OK","Fehler") -> OK | H174: =IF(H173=0,"OK","Fehler") -> OK

Sheet Gesamt-Planung
A1: ='Gesamt-Einnahmen und Ausgaben'!A1 -> Sondervermögen Kameradschaftskasse der Freiwilligen Feuerwehr der Gemeinde Musterort
A2: Einnahmen- und Ausgabenplanung für das Haushaltsjahr | E2: 2022
B3: Gesamtplan
A4: ='Gesamt-Einnahmen und Ausgaben'!A3 -> Nr. | B4: ='Gesamt-Einnahmen und Ausgaben'!B3 -> Bezeichnung | C4: ='Gesamt-Einnahmen und Ausgaben'!C3 -> Einnahmen | D4: ='Gesamt-Einnahmen und Ausgaben'!D3 -> Erläuterungen | E4: ='Gesamt-Einnahmen und Ausgaben'!E3 -> Nr. | F4: ='Gesamt-Einnahmen und Ausgaben'!F3 -> Bezeichnung | G4: ='Gesamt-Einnahmen und Ausgaben'!G3 -> Ausgaben | H4: ='Gesamt-Einnahmen und Ausgaben'!H3 -> Erläuterungen
A5: 1 | B5: 2 | C5: 3 | D5: 4 | E5: 5 | F5: 6 | G5: 7 | H5: 8
A6: ='Gesamt-Einnahmen und Ausgaben'!A5 -> 0 | B6: ='Gesamt-Einnahmen und Ausgaben'!B5 -> Zuwendungen von Mitgliedern | C6: ='Bankkonto-Wehr'!K5+'Kasse-Wehr'!K5+'Bankkonto-Jugendwehr'!K5+'Kasse-Jugendwehr'!K5+'Bankkonto-Musikzug'!K5+'Kasse-Musikzug'!K5+'Kasse 4'!K5+'Kasse 5'!K5 -> 8000 | E6: ='Gesamt-Einnahmen und Ausgaben'!E5 -> 8 | F6: ='Gesamt-Einnahmen und Ausgaben'!F5 -> Ausgaben für Kameradschaftspflege und Versammlungen | G6: ='Bankkonto-Wehr'!L5+'Kasse-Wehr'!L5+'Bankkonto-Jugendwehr'!L5+'Kasse-Jugendwehr'!L5+'Bankkonto-Musikzug'!L5+'Kasse-Musikzug'!L5+'Kasse 4'!L5+'Kasse 5'!L5 -> 16000
A7: ='Gesamt-Einnahmen und Ausgaben'!A6 -> 1 | B7: ='Gesamt-Einnahmen und Ausgaben'!B6 -> Zuwendungen von Dritten | C7: ='Bankkonto-Wehr'!K6+'Kasse-Wehr'!K6+'Bankkonto-Jugendwehr'!K6+'Kasse-Jugendwehr'!K6+'Bankkonto-Musikzug'!K6+'Kasse-Musikzug'!K6+'Kasse 4'!K6+'Kasse 5'!K6 -> 8000 | E7: ='Gesamt-Einnahmen und Ausgaben'!E6 -> 9 | F7: ='Gesamt-Einnahmen und Ausgaben'!F6 -> Ausgaben für Ehrungen, Geschenke und ähnliche Anlässe | G7: ='Bankkonto-Wehr'!L6+'Kasse-Wehr'!L6+'Bankkonto-Jugendwehr'!L6+'Kasse-Jugendwehr'!L6+'Bankkonto-Musikzug'!L6+'Kasse-Musikzug'!L6+'Kasse 4'!L6+'Kasse 5'!L6 -> 8000
A8: ='Gesamt-Einnahmen und Ausgaben'!A7 -> 2 | B8: ='Gesamt-Einnahmen und Ausgaben'!B7 -> Einnahmen aus Veranstaltungen | C8: ='Bankkonto-Wehr'!K7+'Kasse-Wehr'!K7+'Bankkonto-Jugendwehr'!K7+'Kasse-Jugendwehr'!K7+'Bankkonto-Musikzug'!K7+'Kasse-Musikzug'!K7+'Kasse 4'!K7+'Kasse 5'!K7 -> 8000 | E8: ='Gesamt-Einnahmen und Ausgaben'!E7 -> 10 | F8: ='Gesamt-Einnahmen und Ausgaben'!F7 -> Ausgaben für Veranstaltungen | G8: ='Bankkonto-Wehr'!L7+'Kasse-Wehr'!L7+'Bankkonto-Jugendwehr'!L7+'Kasse-Jugendwehr'!L7+'Bankkonto-Musikzug'!L7+'Kasse-Musikzug'!L7+'Kasse 4'!L7+'Kasse 5'!L7 -> 8000
A9: ='Gesamt-Einnahmen und Ausgaben'!A8 -> 3 | B9: ='Gesamt-Einnahmen und Ausgaben'!B8 -> Veräußerung von Vermögens-gegenständen im Einzelwert ab 500 € | C9: ='Bankkonto-Wehr'!K8+'Kasse-Wehr'!K8+'Bankkonto-Jugendwehr'!K8+'Kasse-Jugendwehr'!K8+'Bankkonto-Musikzug'!K8+'Kasse-Musikzug'!K8+'Kasse 4'!K8+'Kasse 5'!K8 -> 8000 | D9: ='Gesamt-Einnahmen und Ausgaben'!D8 -> Einnahmen aus Abgängen von der Bestandsliste | E9: ='Gesamt-Einnahmen und Ausgaben'!E8 -> 11 | F9: ='Gesamt-Einnahmen und Ausgaben'!F8 -> Erwerb von Vermögensgegenständen im Einzelwert ab 500 € | G9: ='Bankkonto-Wehr'!L8+'Kasse-Wehr'!L8+'Bankkonto-Jugendwehr'!L8+'Kasse-Jugendwehr'!L8+'Bankkonto-Musikzug'!L8+'Kasse-Musikzug'!L8+'Kasse 4'!L8+'Kasse 5'!L8 -> 8000 | H9: ='Gesamt-Einnahmen und Ausgaben'!H8 -> Ausgaben für Zugänge zur Bestandsliste
A10: ='Gesamt-Einnahmen und Ausgaben'!A9 -> 4 | B10: ='Gesamt-Einnahmen und Ausgaben'!B9 -> Erstattung von Auslagen durch Gemeinde und Dritte | C10: ='Bankkonto-Wehr'!K9+'Kasse-Wehr'!K9+'Bankkonto-Jugendwehr'!K9+'Kasse-Jugendwehr'!K9+'Bankkonto-Musikzug'!K9+'Kasse-Musikzug'!K9+'Kasse 4'!K9+'Kasse 5'!K9 -> 8000 | E10: ='Gesamt-Einnahmen und Ausgaben'!E9 -> 12 | F10: ='Gesamt-Einnahmen und Ausgaben'!F9 -> Auslagen für Gemeinde und Dritte | G10: ='Bankkonto-Wehr'!L9+'Kasse-Wehr'!L9+'Bankkonto-Jugendwehr'!L9+'Kasse-Jugendwehr'!L9+'Bankkonto-Musikzug'!L9+'Kasse-Musikzug'!L9+'Kasse 4'!L9+'Kasse 5'!L9 -> 8000
A11: ='Gesamt-Einnahmen und Ausgaben'!A10 -> 5 | B11: ='Gesamt-Einnahmen und Ausgaben'!B10 -> Sonstige Einnahmen | C11: ='Bankkonto-Wehr'!K10+'Kasse-Wehr'!K10+'Bankkonto-Jugendwehr'!K10+'Kasse-Jugendwehr'!K10+'Bankkonto-Musikzug'!K10+'Kasse-Musikzug'!K10+'Kasse 4'!K10+'Kasse 5'!K10 -> 8000 | E11: ='Gesamt-Einnahmen und Ausgaben'!E10 -> 13 | F11: ='Gesamt-Einnahmen und Ausgaben'!F10 -> Sonstige Ausgaben | G11: ='Bankkonto-Wehr'!L10+'Kasse-Wehr'!L10+'Bankkonto-Jugendwehr'!L10+'Kasse-Jugendwehr'!L10+'Bankkonto-Musikzug'!L10+'Kasse-Musikzug'!L10+'Kasse 4'!L10+'Kasse 5'!L10 -> 8000
A12: ='Gesamt-Einnahmen und Ausgaben'!A11 -> 6 | B12: ='Gesamt-Einnahmen und Ausgaben'!B11 -> Einzahlungen der Gemeinde | C12: ='Bankkonto-Wehr'!K11+'Kasse-Wehr'!K11+'Bankkonto-Jugendwehr'!K11+'Kasse-Jugendwehr'!K11+'Bankkonto-Musikzug'!K11+'Kasse-Musikzug'!K11+'Kasse 4'!K11+'Kasse 5'!K11 -> 8000 | E12: ='Gesamt-Einnahmen und Ausgaben'!E11 -> 14 | F12: ='Gesamt-Einnahmen und Ausgaben'!F11 -> Auszahlungen an die Gemeinde | G12: ='Bankkonto-Wehr'!L11+'Kasse-Wehr'!L11+'Bankkonto-Jugendwehr'!L11+'Kasse-Jugendwehr'!L11+'Bankkonto-Musikzug'!L11+'Kasse-Musikzug'!L11+'Kasse 4'!L11+'Kasse 5'!L11 -> 8000
A13: ='Gesamt-Einnahmen und Ausgaben'!A12 -> 7 | B13: ='Gesamt-Einnahmen und Ausgaben'!B12 -> Entnahme aus der Rücklage | C13: =IF(C52<0,C52*-1,0) -> 8000 | D13: ='Gesamt-Einnahmen und Ausgaben'!D12 -> Automatische Buchung | E13: ='Gesamt-Einnahmen und Ausgaben'!E12 -> 15 | F13: ='Gesamt-Einnahmen und Ausgaben'!F12 -> Zuführung zur Rücklage | G13: =IF(C52>0,C52,0) -> 0 | H13: ='Gesamt-Einnahmen und Ausgaben'!H12 -> Automatische Buchung
A14: ='Gesamt-Einnahmen und Ausgaben'!A13 -> 0-7 | B14: ='Gesamt-Einnahmen und Ausgaben'!B13 -> Gesamteinnahmen | C14: =SUM(C6:C13) -> 64000 | E14: ='Gesamt-Einnahmen und Ausgaben'!E13 -> 8-15 | F14: ='Gesamt-Einnahmen und Ausgaben'!F13 -> Gesamtausgaben | G14: =SUM(G6:G13) -> 64000
A15: © Ludwig Fink; Landesfeuerwehrverband Schleswig-Holstein | F15: ='Gesamt-Einnahmen und Ausgaben'!F14 -> Die Ausgaben werden für gegenseitig deckungsfähig erklärt.
B17: Stand des Sondervermögens am 1.Januar 2020 | C17: 10000 | F17: Beschlossen auf der Hauptversammlung am: | G17: Datum
B18: Entnahme | C18: =C13 -> 8000 | F18: Unterschrift Wehrführer
B19: Zuführung | C19: =G13 -> 0 | F19: ----------------------------------------------------------------
B20: Stand des Sondervermögens am 31.Dezember 2020 | C20: =C17-C18+C19 -> 2000
B51: Rechenzellen: | C51: =SUM(C6:C12) -> 56000 | D51: =SUM(G6:G12) -> 64000
C52: =C51-D51 -> -8000
B102: Rechenzellen:
B103: Rücklage | C103: ='Bankkonto-Wehr'!H10+'Kasse-Jugendwehr'!H10-'Bankkonto-Wehr'!D10-'Kasse-Jugendwehr'!D10 -> -2

Sheet Gesamtrechnung (Plan-Ist)
A1: ='Gesamt-Einnahmen und Ausgaben'!A1 -> Sondervermögen Kameradschaftskasse der Freiwilligen Feuerwehr der Gemeinde Musterort
A2: Einnahmen- und Ausgaben PLAN-IST-Vergleich für das Haushaltsjahr | F2: ='Gesamt-Einnahmen und Ausgaben'!D2 -> 2022
B3: Gesamtplan
A4: Nr. | B4: Bezeichnung | C4: Einnahmen Plan | D4: Einnahmen Ist | E4: Abweichung | F4: Erläuterungen | G4: Nr. | H4: Bezeichnung | I4: Ausgaben Plan | J4: Ausgaben Ist | K4: Abweichung | L4: Erläuterungen
A5: 1 | B5: 2 | C5: 3 | D5: 4 | E5: 5 | F5: 6 | G5: 7 | H5: 8 | I5: 9 | J5: 10 | K5: 11 | L5: 12
A6: ='Gesamt-Einnahmen und Ausgaben'!A5 -> 0 | B6: ='Gesamt-Einnahmen und Ausgaben'!B5 -> Zuwendungen von Mitgliedern | C6: ='Gesamt-Planung'!C6 -> 8000 | D6: ='Gesamt-Einnahmen und Ausgaben'!C5 -> 60016 | E6: =D6-C6 -> 52016 | G6: ='Gesamt-Einnahmen und Ausgaben'!E5 -> 8 | H6: ='Gesamt-Einnahmen und Ausgaben'!F5 -> Ausgaben für Kameradschaftspflege und Versammlungen | I6: ='Gesamt-Planung'!G6 -> 16000 | J6: ='Gesamt-Einnahmen und Ausgaben'!G5 -> 60121 | K6: =J6-I6 -> 44121
A7: ='Gesamt-Einnahmen und Ausgaben'!A6 -> 1 | B7: ='Gesamt-Einnahmen und Ausgaben'!B6 -> Zuwendungen von Dritten | C7: ='Gesamt-Planung'!C7 -> 8000 | D7: ='Gesamt-Einnahmen und Ausgaben'!C6 -> 60014 | E7: =D7-C7 -> 52014 | G7: ='Gesamt-Einnahmen und Ausgaben'!E6 -> 9 | H7: ='Gesamt-Einnahmen und Ausgaben'!F6 -> Ausgaben für Ehrungen, Geschenke und ähnliche Anlässe | I7: ='Gesamt-Planung'!G7 -> 8000 | J7: ='Gesamt-Einnahmen und Ausgaben'!G6 -> 60014 | K7: =J7-I7 -> 52014
A8: ='Gesamt-Einnahmen und Ausgaben'!A7 -> 2 | B8: ='Gesamt-Einnahmen und Ausgaben'!B7 -> Einnahmen aus Veranstaltungen | C8: ='Gesamt-Planung'!C8 -> 8000 | D8: ='Gesamt-Einnahmen und Ausgaben'!C7 -> 60014 | E8: 52014 | G8: ='Gesamt-Einnahmen und Ausgaben'!E7 -> 10 | H8: ='Gesamt-Einnahmen und Ausgaben'!F7 -> Ausgaben für Veranstaltungen | I8: ='Gesamt-Planung'!G8 -> 8000 | J8: ='Gesamt-Einnahmen und Ausgaben'!G7 -> 60007 | K8: 52007
A9: ='Gesamt-Einnahmen und Ausgaben'!A8 -> 3 | B9: ='Gesamt-Einnahmen und Ausgaben'!B8 -> Veräußerung von Vermögens-gegenständen im Einzelwert ab 500 € | C9: ='Gesamt-Planung'!C9 -> 8000 | D9: ='Gesamt-Einnahmen und Ausgaben'!C8 -> 60014 | E9: 52014 | F9: Einnahmen für Abgänge aus der Bestandsliste | G9: ='Gesamt-Einnahmen und Ausgaben'!E8 -> 11 | H9: ='Gesamt-Einnahmen und Ausgaben'!F8 -> Erwerb von Vermögensgegenständen im Einzelwert ab 500 € | I9: ='Gesamt-Planung'!G9 -> 8000 | J9: ='Gesamt-Einnahmen und Ausgaben'!G8 -> 60007 | K9: 52007 | L9: ='Gesamt-Einnahmen und Ausgaben'!H8 -> Ausgaben für Zugänge zur Bestandsliste
A10: ='Gesamt-Einnahmen und Ausgaben'!A9 -> 4 | B10: ='Gesamt-Einnahmen und Ausgaben'!B9 -> Erstattung von Auslagen durch Gemeinde und Dritte | C10: ='Gesamt-Planung'!C10 -> 8000 | D10: ='Gesamt-Einnahmen und Ausgaben'!C9 -> 60014 | E10: 52014 | G10: ='Gesamt-Einnahmen und Ausgaben'!E9 -> 12 | H10: ='Gesamt-Einnahmen und Ausgaben'!F9 -> Auslagen für Gemeinde und Dritte | I10: ='Gesamt-Planung'!G10 -> 8000 | J10: ='Gesamt-Einnahmen und Ausgaben'!G9 -> 60007 | K10: 52007
A11: ='Gesamt-Einnahmen und Ausgaben'!A10 -> 5 | B11: ='Gesamt-Einnahmen und Ausgaben'!B10 -> Sonstige Einnahmen | C11: ='Gesamt-Planung'!C11 -> 8000 | D11: ='Gesamt-Einnahmen und Ausgaben'!C10 -> 60014 | E11: 52014 | G11: ='Gesamt-Einnahmen und Ausgaben'!E10 -> 13 | H11: ='Gesamt-Einnahmen und Ausgaben'!F10 -> Sonstige Ausgaben | I11: ='Gesamt-Planung'!G11 -> 8000 | J11: ='Gesamt-Einnahmen und Ausgaben'!G10 -> 60007 | K11: 52007
A12: ='Gesamt-Einnahmen und Ausgaben'!A11 -> 6 | B12: ='Gesamt-Einnahmen und Ausgaben'!B11 -> Einzahlungen der Gemeinde | C12: ='Gesamt-Planung'!C12 -> 8000 | D12: ='Gesamt-Einnahmen und Ausgaben'!C11 -> 60014 | E12: 52014 | G12: ='Gesamt-Einnahmen und Ausgaben'!E11 -> 14 | H12: ='Gesamt-Einnahmen und Ausgaben'!F11 -> Auszahlungen an die Gemeinde | I12: ='Gesamt-Planung'!G12 -> 8000 | J12: ='Gesamt-Einnahmen und Ausgaben'!G11 -> 60007 | K12: 52007
A13: ='Gesamt-Einnahmen und Ausgaben'!A12 -> 7 | B13: ='Gesamt-Einnahmen und Ausgaben'!B12 -> Entnahme aus der Rücklage | C13: ='Gesamt-Planung'!C13 -> 8000 | D13: ='Gesamt-Einnahmen und Ausgaben'!C12 -> 70 | E13: -7930 | F13: Automatische Buchung | G13: ='Gesamt-Einnahmen und Ausgaben'!E12 -> 15 | H13: ='Gesamt-Einnahmen und Ausgaben'!F12 -> Zuführung zur Rücklage | I13: ='Gesamt-Planung'!G13 -> 0 | J13: ='Gesamt-Einnahmen und Ausgaben'!G12 -> 0 | K13: 0 | L13: Automatische Buchung
A14: ='Gesamt-Einnahmen und Ausgaben'!A13 -> 0-7 | B14: ='Gesamt-Einnahmen und Ausgaben'!B13 -> Gesamteinnahmen | C14: =SUM(C6:C13) -> 64000 | D14: =SUM(D6:D13) -> 420170 | E14: 356170 | G14: ='Gesamt-Einnahmen und Ausgaben'!E13 -> 8-15 | H14: ='Gesamt-Einnahmen und Ausgaben'!F13 -> Gesamtausgaben | I14: =SUM(I6:I13) -> 64000 | J14: =SUM(J6:J13) -> 420170 | K14: 356170
A15: © Ludwig Fink; Landesfeuerwehrverband Schleswig-Holstein
B17: Entwicklung des Sondervermögens | C17: Plan | D17: Ist | E17: Abweichung
B18: ='Gesamt-Planung'!B17 -> Stand des Sondervermögens am 1.Januar 2020 | C18: ='Gesamt-Planung'!C17 -> 10000 | D18: ='Gesamt-Einnahmen und Ausgaben'!C15 -> 307 | E18: =D18-C18 -> -9693
B19: Entnahme | C19: ='Gesamt-Planung'!C18 -> 8000 | D19: ='Gesamt-Einnahmen und Ausgaben'!C16 -> 70 | E19: =D19-C19 -> -7930
B20: Zuführung | C20: ='Gesamt-Planung'!C19 -> 0 | D20: ='Gesamt-Einnahmen und Ausgaben'!C17 -> 0 | E20: 0
B21: ='Gesamt-Planung'!B20 -> Stand des Sondervermögens am 31.Dezember 2020 | C21: ='Gesamt-Planung'!C20 -> 2000 | D21: ='Gesamt-Einnahmen und Ausgaben'!C18 -> 237 | E21: -1763

Sheet Bestandsverzeichnis
A1: ='Gesamt-Einnahmen und Ausgaben'!A1 -> Sondervermögen Kameradschaftskasse der Freiwilligen Feuerwehr der Gemeinde Musterort
A2: Bestandsverzeichnis für Vermögensgegenstände mit Anschaffungs-/Herstellungskosten
A3: im Einzelwert ab 500,00 €
A4: © Ludwig Fink; Landesfeuerwehrverband Schleswig-Holstein
A5: Inventar-Nr. | B5: Bezeichnung | C5: Datum | D5: Historische AK/HK
A6: 001 | B6: Beispiel | C6: 2017-06-22 | D6: 599.67
A7: 002
A8: 003
A9: 004
A10: 005
A11: 006
A12: 007
A13: 008
A14: 009
A15: 010
A16: 011
A17: 012
A18: 013
A19: 014
A20: 015
A21: 016
A22: 017
A23: 018
A24: 019
A25: 020
A26: 021
A27: 022
A28: 023
A29: 024
A30: 025
A31: 026
A32: 027
A33: 028
A34: 029
A35: 030
A36: 031
A37: 032
A38: 033
A39: 034
A40: 035

Sheet Checkliste Kassenprüfung
B1: Checkliste Kassenprüfung
A2: A | B2: Allgemeine Grundsätze
A3: 1 | B3: Keine Buchung ohne Beleg
A4: 2 | B4: Die Belege werden je Kasse fortlaufend mit Nummern markiert und gebucht, es gibt keine Lücken
A5: 3 | B5: Markierungen, Nummern, Unterschriften etc. sind mit dokumentenechten Schreibern durchzuführen
A6: 4 | B6: Vier-Augen-Prinzip muss eingehalten werden, Anweisender und Kassenwartung unterschreiben
A7: 5 | B7: Jede Ausgabe ist auf sachlich richtige Zuordnung nach den Ziffern des Programms zu prüfen. Sind sie dem Träger der Feuerwehr zuzuordnen, ist eine Erstattung zu veranlassen
A8: B | B8: Prüfung der Bankkonten
A9: 6 | B9: Für alle Konten gibt es lückenlos Kontoauszüge
A10: 7 | B10: Saldenmitteilungen zum 31.12. stimmen mit den Eintragungen im Kassenprogramm zum 31.12. überein.
A11: C | B11: Prüfung der Bar-Kassen
A12: 8 | B12: Für alle Kassen gibt es ein chronologisch geführtes Kassenbuch.
A13: 9 | B13: Zum 31.12. wurde eine Kassenzählung mit Kassenaufnahmeprotokoll angefertigt und von der Kassenwartung unterschrieben.
A14: D | B14: Prüfung des Kassenprogramms
A15: 10 | B15: Die Anfangsstände zum 1.1. sind korrekt vom Endstand des Kassenprogramms zum 31.12. des Vorjahres übernommen worden
A16: 11 | B16: Die errechneten Endstände im Kassenprogramm zum 31.12. stimmen mit den Kontoauszügen, Saldenmitteilungen und Aufnahmeprotokollen überein.
A17: E | B17: Prüfung der Buchführung
A18: 12 | B18: Jeder Beleg wurde separat gebucht
A19: 13 | B19: Jeder Beleg trägt zwei dokumentenechte Unterschriften, eine zur Anweisung, die zweite vom Kassenwart als Zahlungsvermerk
A20: 14 | B20: Jeder Beleg trägt das Datum der Zahlung
A21: 15 | B21: Die Belege (je Kasse) wurden fortlaufend mit Nummern markiert und gebucht, es gibt keine Lücken
A22: 16 | B22: Es gibt keine Hinweise darauf, dass die Kasse/Buchführung nicht zeitnah bearbeitet wurde.
B23: © Ludwig Fink; Landesfeuerwehrverband Schleswig-Holstein
B24: Die Checkliste erhebt keinen Anspruch auf Vollständigkeit, sondern wird als Grundgerüst zur Kassenprüfung empfohlen.
